Cogmind - Beta 15 @@@ ROGUE MODE // 2025.09.26 @ 20:30:25 Player: chebyrekser Result: Establishing Free Derelict Territories! Performance ------------- Evolutions (9) 4500 Regions Visited (32) 6400 Robots Destroyed (361) 1805 Value Destroyed (17018) 17018 Prototype IDs (87) 1740 Alien Tech Used (3) 600 Bonus (36150) 36150 TOTAL SCORE: 68213 Bonus ------- High Alert Combat Kills 906 Follower Combat Kills 2051 Entered Garrisons 400 Network Hubs Disabled 200 Aligned with FarCom 300 Met Data Miner 300 Acquired ECA 300 Met Zhirov 300 Met Warlord at Base 500 MAIN.C Attacked Warlord 500 Built Enhanced Grunts 300 A7 Reached Mainframe 300 Met R17 at Cetus 500 Met R17 at Research 2000 Met Warlord at Research 2000 Destroyed MAIN.C Guards 500 Met MAIN.C 5000 Hacked MAIN.C 300 Destroyed MAIN.C Shell 5000 Destroyed MAIN.C 10000 Met Warlord at Command 2000 Win 3000 Friendly Fire -507 Cogmind --------- Core Integrity 1405/1600 Matter 300/300 Energy 850/850 System Corruption 12% Temperature Cool (0) Movement Treading (143) Location Free Derelict Territories Parts ------- > --- POWER (3) -------- Quantum Reactor Quantum Reactor Quantum Reactor > --- PROPULSION (6) --- Centrium Heavy Treads Experimental Biometal Heavy Treads Experimental Biometal Heavy Treads > --- UTILITY (14) ----- Advanced Power Amplifier Advanced Cooling System Huge Storage Unit Experimental Targeting Computer Advanced Weapon Cycler Centrium Medium Armor Plating Centrium Medium Armor Plating Advanced Force Field Advanced Point Defense System Advanced Point Defense System Advanced Hacking Suite Improved System Shield Long-range Tractor Beam > --- WEAPON (3) ------- Advanced KE Penetrator Enhanced Hardcell Cannon Enhanced Hardcell Cannon (fused) > --- INVENTORY (25) --- Vortex Chain Reactor Experimental Biometal Heavy Treads Experimental Biometal Heavy Treads Advanced Energy Well (500) Matter Compressor (250) Long-range Terrain Scanner Transmission Jammer Advanced Transmission Jammer Experimental Cloaking Device Enhanced Quantum Rifle Enhanced Quantum Rifle Compact HERF Cannon Compact HERF Cannon Enhanced Nova Cannon Enhanced Nova Cannon Advanced KE Penetrator Proton Missile Launcher Scatter Rocket Array Advanced Remote Datajack Peak State ------------ > --- POWER ------------ Quantum Reactor Quantum Reactor Quantum Reactor > --- PROPULSION ------- Centrium Heavy Treads Experimental Biometal Heavy Treads Experimental Biometal Heavy Treads > --- UTILITY ---------- Advanced Power Amplifier Advanced Cooling System Huge Storage Unit Experimental Targeting Computer Core Analyzer Advanced Weapon Cycler Experimental Cloaking Device Centrium Medium Armor Plating Centrium Medium Armor Plating Advanced Force Field Advanced Point Defense System Advanced Point Defense System Advanced Hacking Suite Improved System Shield > --- WEAPON ----------- Enhanced Hardcell Cannon Enhanced Hardcell Cannon Advanced Remote Datajack > --- INVENTORY -------- Quantum Reactor Vortex Chain Reactor Experimental Biometal Heavy Treads Experimental Biometal Heavy Treads Advanced Energy Well Matter Compressor Long-range Terrain Scanner Transmission Jammer Advanced Transmission Jammer Advanced Force Field Long-range Tractor Beam Enhanced Quantum Rifle Enhanced Quantum Rifle Compact HERF Cannon Compact HERF Cannon Enhanced Nova Cannon Enhanced Nova Cannon Advanced KE Penetrator Advanced KE Penetrator Proton Missile Launcher Scatter Rocket Array [Rating: 225] Favorites ----------- Power Quantum Reactor Engine Cooled Ion Engine Power Core Neutrino Core Reactor Quantum Reactor Propulsion Centrium Heavy Treads Treads Centrium Heavy Treads Leg Makeshift Leg Wheel Armored Wheel Utility Huge Storage Unit Device Improved Heat Sink Storage Huge Storage Unit Processor Experimental Targeting Computer Hackware Advanced Hacking Suite Protection Centrium Medium Armor Plating Weapon Advanced KE Penetrator Energy Gun Advanced Beam Rifle Energy Cannon Neutron Cannon Ballistic Gun Advanced KE Penetrator Ballistic Cannon Enhanced Hardcell Cannon Launcher Grenade Launcher Special Weapon Mining Laser Slashing Weapon Phasing Sabre Piercing Weapon Makeshift Spear Special Melee Weapon Improved Datajack Build | -11 -10 -10 -10 -9 -8 -8 -8 -8 -7 -7 -7 -7 -6 -6 -6 -6 -6 -6 -5 -5 -5 -5 -4 -4 -4 -4 -4 -3 -3 -2 -1 -1 ------- Run | Yrd Mat Min Exi Min Mat Gar Mat Gar Fac Low Low Dat Pro Fac Ext Cet Arc Hub Fac Upp Upp War Pro Fac Upp Upp Zhi Pro Res Res Acc Com Slots Evolved 18 | . . . . . 4 . . . 2 . . . . 2 . . . . 2 . . . . 2 . . . . 2 2 2 . Power 2 | . . . . . . . . . . . . . . . . . . . 1 . . . . . . . . . . 1 . . Propulsion 3 | . . . . . 2 . . . . . . . . . . . . . 1 . . . . . . . . . . . . . Utility 12 | . . . . . 2 . . . 1 . . . . 2 . . . . . . . . . 2 . . . . 2 1 2 . Weapon 1 | . . . . . . . . . 1 . . . . . . . . . . . . . . . . . . . . . . . Parts Attached 257 | 7 21 15 . 1 16 10 9 14 9 5 1 2 1 9 21 13 7 9 11 1 2 4 3 5 5 3 5 2 4 26 3 13 Power 35 | 1 5 2 . . 2 . . . 1 . . . . 2 4 3 . 2 2 . 1 . . . . . 1 1 . 7 . 1 Engine 18 | 1 5 2 . . 2 . . . 1 . . . . 2 3 2 . . . . . . . . . . . . . . . . Core 4 | . . . . . . . . . . . . . . . . . . . 2 . 1 . . . . . . . . 1 . . Reactor 13 | . . . . . . . . . . . . . . . 1 1 . 2 . . . . . . . . 1 1 . 6 . 1 Propulsion 60 | 2 5 5 . . 5 5 5 10 3 1 . . . . 3 3 . 2 2 . . . . . . 1 . . 1 7 . . Treads 37 | 1 1 2 . . 2 5 5 4 1 . . . . . . 3 . 2 2 . . . . . . 1 . . 1 7 . . Leg 2 | . 1 . . . 1 . . . . . . . . . . . . . . . . . . . . . . . . . . . Wheel 21 | 1 3 3 . . 2 . . 6 2 1 . . . . 3 . . . . . . . . . . . . . . . . . Hover . | . . . . . . . . . . . . . . . . . . . . . . . . . . . . . . . . . Flight . | . . . . . . . . . . . . . . . . . . . . . . . . . . . . . . . . . Utility 106 | 2 8 3 . . 3 4 2 3 3 4 . 2 1 5 6 4 6 2 6 1 . 4 1 5 4 2 4 1 2 8 3 7 Device 52 | 1 4 1 . . . 2 1 1 1 2 . 1 1 3 1 . 4 . 1 1 . 2 1 3 4 . 1 1 2 5 3 5 Storage 8 | 1 4 . . . 1 . . . . . . . . . . . 1 . 1 . . . . . . . . . . . . . Processor 16 | . . . . . 1 . . . 1 2 . . . 1 2 . . 1 2 . . 1 . 2 . 1 . . . 2 . . Hackware 13 | . . . . . . . 1 . 1 . . . . 1 . 1 1 . 2 . . 1 . . . . 2 . . 1 . 2 Protection 17 | . . 2 . . 1 2 . 2 . . . 1 . . 3 3 . 1 . . . . . . . 1 1 . . . . . Artifact . | . . . . . . . . . . . . . . . . . . . . . . . . . . . . . . . . . Weapon 56 | 2 3 5 . 1 6 1 2 1 2 . 1 . . 2 8 3 1 3 1 . 1 . 2 . 1 . . . 1 4 . 5 Energy Gun 15 | 1 2 2 . . 2 . 1 . . . . . . 1 1 . . 1 1 . . . 1 . . . . . . 2 . . Energy Cannon 10 | . . . . . . 1 . . 1 . 1 . . . . . 1 . . . . . . . 1 . . . 1 2 . 2 Ballistic Gun 18 | 1 . 1 . . 4 . 1 . 1 . . . . . 4 3 . 2 . . . . 1 . . . . . . . . . Ballistic Cannon 3 | . . . . . . . . . . . . . . . . . . . . . 1 . . . . . . . . . . 2 Launcher 5 | . . 2 . . . . . 1 . . . . . 1 1 . . . . . . . . . . . . . . . . . Special Weapon 2 | . 1 . . . . . . . . . . . . . . . . . . . . . . . . . . . . . . 1 Impact Weapon . | . . . . . . . . . . . . . . . . . . . . . . . . . . . . . . . . . Slashing Weapon 1 | . . . . . . . . . . . . . . . 1 . . . . . . . . . . . . . . . . . Piercing Weapon 1 | . . . . 1 . . . . . . . . . . . . . . . . . . . . . . . . . . . . Special Melee Weapon 1 | . . . . . . . . . . . . . . . 1 . . . . . . . . . . . . . . . . . Unidentified Prototypes 23 | . . . . . 2 . 1 . . 1 . . . 2 . 3 3 1 . . . 3 . . . . 4 . . 2 . 1 Corrupted Parts 11 | . . . . . . . . . . . . . . . . 2 . 7 . . . . . . . 1 . 1 . . . . System Corruption 85 | . . . . . . . . . . . . . . . . 22 . 49 . . . . . . . 4 . 10 . . . . Parts Lost 37 | . 5 9 . 1 1 . 2 2 1 . . . . . 6 . . . . . . . . 4 . . . 1 . . . 5 Power 4 | . 1 2 . . . . . . . . . . . . . . . . . . . . . . . . . . . . . 1 Propulsion 10 | . 2 3 . . 1 . . 2 . . . . . . 2 . . . . . . . . . . . . . . . . . Utility 13 | . 1 1 . . . . 1 . . . . . . . 2 . . . . . . . . 4 . . . . . . . 4 Weapon 10 | . 1 3 . 1 . . 1 . 1 . . . . . 2 . . . . . . . . . . . . 1 . . . . Highest Loss Streak 7 | . 2 7 . 1 1 . 1 2 1 . . . . . 3 . . . . . . . . 3 . . . 1 . . . 3 To Critical Strikes . | . . . . . . . . . . . . . . . . . . . . . . . . . . . . . . . . . Average Backups 23 | 5 21 22 24 25 24 25 24 24 24 24 24 24 24 24 24 23 23 22 22 23 23 22 22 18 21 22 21 21 21 21 21 21 Power 2 | . 2 3 5 5 3 2 2 2 2 2 2 2 2 2 2 2 2 2 2 2 1 1 1 1 1 1 1 1 2 1 1 1 Propulsion 3 | 3 4 3 5 5 6 6 6 4 4 3 3 3 3 3 2 2 2 2 2 2 2 2 2 2 2 2 2 2 2 2 2 2 Utility 9 | . 5 7 7 8 7 8 7 6 6 7 8 8 8 8 10 9 9 9 10 11 11 12 13 9 11 12 12 11 9 10 10 8 Weapon 8 | . 8 7 7 7 7 8 8 11 11 10 10 10 10 9 8 8 8 8 7 7 7 6 6 6 7 7 6 5 6 6 6 8 Tool/Special . | . . . . . . . . . . . . . . . . . . . . . . . . . . . . . . . . . Unused Backups 59 | 1 7 1 1 . 17 . . 2 2 2 . . . 2 3 4 . . . . 1 2 . . . . 1 1 2 4 . 6 Power 10 | . . . 1 . 5 . . . . 1 . . . . 1 . . . . . . . . . . . . . . 1 . 1 Propulsion 13 | . 3 . . . 3 . . . 1 1 . . . . 1 2 . . . . . . . . . . . . . . . 2 Utility 14 | . 1 . . . 3 . . 1 . . . . . 1 1 2 . . . . 1 1 . . . . . 1 1 . . 1 Weapon 21 | 1 3 . . . 6 . . 1 1 . . . . 1 . . . . . . . 1 . . . . 1 . 1 3 . 2 Tool/Special 1 | . . 1 . . . . . . . . . . . . . . . . . . . . . . . . . . . . . . Average Slot Usage (%) 90 | . 97 97 100 85 97 100 99 99 85 81 85 69 85 86 86 80 86 87 85 88 88 87 87 89 84 90 75 89 89 88 86 87 Engine 5 | . 14 13 14 14 9 9 9 9 7 7 7 7 7 6 6 5 . . . . . . . . . . . . . . . . Reactor 3 | . . . . . . . . . . . . . . . . 1 6 6 5 5 5 8 11 10 10 10 9 10 9 12 11 11 Treads 14 | . 13 17 14 14 17 18 18 17 . . . . . . . 10 18 18 21 22 22 22 21 20 20 20 20 20 18 14 11 11 Wheel 9 | . 14 10 14 14 16 18 17 18 16 15 21 21 21 17 17 7 . . . . . . . . . . . . . . . . Device 10 | . 11 12 14 14 8 9 8 9 7 13 13 13 12 10 5 6 6 5 6 5 9 8 5 14 19 18 17 14 17 14 17 22 Storage 7 | . 14 14 14 14 9 9 9 9 7 7 7 7 7 6 6 6 6 6 5 5 5 5 5 5 5 5 5 5 4 4 3 3 Processor 12 | . . . . . 7 9 9 9 14 14 14 14 14 15 18 18 18 22 16 16 16 16 16 18 15 19 20 20 18 19 19 14 Hackware 2 | . . . . . . . 4 . . . . . . 5 6 6 6 6 5 5 5 5 5 2 . . 1 5 4 5 7 6 Protection 4 | . . 1 . . 8 9 4 8 6 . . . 1 3 6 5 4 2 3 5 1 2 5 3 . 2 . . 3 4 3 3 Energy Gun 6 | . 20 13 14 . 8 7 8 6 7 7 7 1 7 6 6 3 5 1 1 5 3 5 4 . . . . 1 . . . 1 Energy Cannon 1 | . . . . . . . . . 3 3 5 1 . 4 . 1 . 4 3 . 1 1 . 4 4 5 . 3 3 3 2 1 Ballistic Gun 8 | . 4 9 14 5 5 8 4 6 9 8 8 1 13 7 10 5 12 12 11 11 11 8 10 9 10 9 1 9 5 7 7 3 Peak Build Rating 225 | 7 11 14 15 16 31 34 34 35 55 58 57 58 60 73 74 121 125 125 138 139 139 156 156 162 158 153 144 148 167 197 213 225 Average Rating 89 | 4 9 11 14 14 28 32 32 34 50 53 56 45 58 69 70 92 120 118 132 137 135 141 153 156 144 148 121 143 163 186 207 212 On Entrance 91 | . 7 11 14 15 13 31 32 33 35 51 55 57 57 59 72 72 121 122 125 138 139 138 156 152 158 153 144 140 145 166 197 209 Naked Turns . | . . . . . . . . . . . . . . . . . . . . . . . . . . . . . . . . . Heaviest Build 222 | 14 91 91 90 90 99 102 101 103 110 110 107 107 107 117 125 124 126 129 143 139 139 162 164 177 165 165 158 150 157 184 193 222 Greatest Support 250 | 20 20 40 16 16 24 24 24 40 56 72 68 68 68 68 72 190 190 190 217 214 214 214 214 214 214 214 210 210 217 250 250 250 Greatest Overweight (x) 32 | . 9 9 5 5 7 32 4 8 4 1 1 1 1 1 2 4 . . . . . . . 1 . . . . . . 1 1 Average Overweight (x) 1 | . 5 5 5 5 3 4 3 3 1 1 1 1 1 1 1 2 . . . . . . . . . . . . . . . . Largest Inventory Capacity 25 | 8 25 25 25 25 25 25 25 25 25 25 25 25 25 25 25 25 25 25 25 25 25 25 25 25 25 25 25 25 25 25 25 25 Average Capacity 24 | 7 23 25 25 25 25 25 25 25 25 25 25 25 25 25 25 25 25 25 25 25 25 25 25 25 25 25 25 25 25 25 25 25 Most Carried 25 | 8 25 25 25 25 25 25 25 25 25 25 25 25 25 25 25 25 25 25 25 25 25 25 25 25 25 25 25 25 25 25 25 25 Average Carried 24 | 5 21 22 24 24 24 24 24 24 24 24 25 25 24 24 24 24 24 24 24 25 25 24 24 21 24 24 24 24 24 24 24 24 Final Capacity 25 | 8 25 25 25 25 25 25 25 25 25 25 25 25 25 25 25 25 25 25 25 25 25 25 25 25 25 25 25 25 25 25 25 25 Final Carried 25 | 8 24 23 25 25 25 25 24 25 25 25 25 25 25 25 25 25 25 24 25 25 25 25 25 22 25 25 25 24 25 25 25 22 Class Distribution -------------------- 24% | Mutant 20% | Scavenger-Tank 15% | Scavenger-Mutant 10% | Scavenger-Skirmisher 10% | Skirmisher 5% | Scavenger-Gunner 3% | Hacker-Gunner Dominant Class ---------------- Mutant | -10/Materials Mutant | -10/Mines Scavenger-Mutant | -10/Exiles Mutant | -9/Mines Mutant | -8/Materials Mutant | -8/Garrison Scavenger-Mutant | -8/Materials Scavenger-Mutant | -8/Garrison Skirmisher | -7/Factory Skirmisher | -7/Lower Caves Skirmisher | -7/Lower Caves Mutant | -7/Data Miner Skirmisher | -6/Proximity Caves Gunner | -6/Factory Commander-Gunner | -6/Extension Scavenger-Mutant | -6/Cetus Scavenger-Tank | -6/Archives Scavenger-Gunner | -6/Hub_04(d) Scavenger-Tank | -5/Factory Scavenger-Tank | -5/Upper Caves Scavenger-Gunner | -5/Upper Caves Scavenger-Tank | -5/Warlord Scavenger-Tank | -4/Proximity Caves Scavenger-Skirmisher | -4/Factory Scavenger-Tank | -4/Upper Caves Scavenger-Tank | -4/Upper Caves Scavenger-Mutant | -4/Zhirov Scavenger-Tank | -3/Proximity Caves Scavenger-Skirmisher | -3/Research Scavenger-Skirmisher | -2/Research Hacker-Skirmisher | -1/Access Hacker-Gunner | -1/Command Resources | -11 -10 -10 -10 -9 -8 -8 -8 -8 -7 -7 -7 -7 -6 -6 -6 -6 -6 -6 -5 -5 -5 -5 -4 -4 -4 -4 -4 -3 -3 -2 -1 -1 ----------- Run | Yrd Mat Min Exi Min Mat Gar Mat Gar Fac Low Low Dat Pro Fac Ext Cet Arc Hub Fac Upp Upp War Pro Fac Upp Upp Zhi Pro Res Res Acc Com Matter Collected 14963 | 279 645 600 . 2 717 556 437 912 331 273 88 . 349 481 1213 344 335 245 430 155 311 209 637 749 283 731 . 582 45 924 332 1768 Remotely 1679 | . . . . . . . . . . . . . . . . . . . . . . . . . 37 . . . . 459 . 1183 Salvage Created 17187 | 107 901 407 . 9 768 685 1093 1712 452 225 41 . 304 423 2091 188 470 291 591 119 306 . 758 1014 91 455 . 293 45 980 705 1663 Parts 775 | 10 59 28 . 3 46 35 63 84 30 8 4 . 20 12 50 9 21 11 19 5 8 . 36 37 1 24 . 11 1 16 52 72 Haulers Intercepted 11 | . 2 . . . 4 . 3 . . . . . . . . . . 2 . . . . . . . . . . . . . . Recyclers Shooed 12 | . 3 1 . . . . 1 . . . . . . . 1 . . . . . . . . . . . . . . . . 6 Parts Field Recycled . | . . . . . . . . . . . . . . . . . . . . . . . . . . . . . . . . . Retrieved Matter . | . . . . . . . . . . . . . . . . . . . . . . . . . . . . . . . . . Parts Self-Destructed 62 | . . . . . . . . . . 1 4 . 11 . . . . . . 7 6 . 16 . 5 7 . 5 . . . . Prevented 47 | . . . . . . . . . . 6 . . 6 . . . . . . 3 2 . 15 . . 9 . 6 . . . . Kills | -11 -10 -10 -10 -9 -8 -8 -8 -8 -7 -7 -7 -7 -6 -6 -6 -6 -6 -6 -5 -5 -5 -5 -4 -4 -4 -4 -4 -3 -3 -2 -1 -1 ------- Run | Yrd Mat Min Exi Min Mat Gar Mat Gar Fac Low Low Dat Pro Fac Ext Cet Arc Hub Fac Upp Upp War Pro Fac Upp Upp Zhi Pro Res Res Acc Com Combat Hostiles Destroyed 279 | . 15 18 . 3 6 21 10 40 6 4 1 . 10 8 21 2 2 1 5 2 6 . 16 22 4 10 . 5 . 17 10 14 Guns 136 | . 15 7 . . 6 14 8 14 6 1 1 . 3 4 19 . 2 1 4 2 2 . 7 3 . . . 1 . . 9 7 Cannons 12 | . . . . . . . 1 2 . . . . . 1 . . . . 1 . . . . 1 . . . . . 2 . 4 AOE 110 | . . 11 . 3 . 7 1 23 . 3 . . 6 3 2 . . . . . 4 . 6 15 4 8 . 3 . 11 . . Classes Destroyed 23 | 2 6 1 . . 2 1 1 4 . . . . . . 1 . . . 1 . . . . 1 . . . 1 . 2 . . Worker 15 | . 2 2 . . 2 . 1 . 2 . . . . . 1 . . . . . . . . 2 . . . . . 1 . 2 Builder 5 | . . . . . 1 . . . . . . . . 1 . . . . . . . . 2 1 . . . . . . . . Tunneler 8 | 2 . 2 . . 1 . 1 . . . . . . . . . . 2 . . . . . . . . . . . . . . Hauler 11 | . 2 . . . 4 . 3 . . . . . . . . . . 2 . . . . . . . . . . . . . . Recycler 24 | 1 3 . . . 2 . 4 . 1 . . . . 1 5 . . . 2 . . . . 2 . . . . . . . 3 Mechanic 2 | . . . . . . . . . . . . . . . 1 . . . . . . . . . . . . . 1 . . . Operator 14 | . 1 . . . 1 . 1 . . . . . . . 1 . 9 . . . . . . . . . . . . . . 1 Drone 2 | . . . . . . . . . . . . . . . . . . . . . . . . . . . . 2 . . . . Watcher 15 | . 2 . . . . . 2 . 2 . . . . . 1 1 . . 1 . . . 2 . . . . . . . . 4 Swarmer 47 | . 3 3 . 3 . 4 . 7 . . . . 8 . . . . . . . . . 9 5 . 4 . . . 1 . . Saboteur 5 | . . . . . . . . 3 . . . . . . . . . . . . . . 2 . . . . . . . . . Grunt 108 | . 12 8 . . 3 10 4 20 2 2 . . . 2 11 . . . 1 1 5 . . 4 4 3 . 3 . 10 . 3 Brawler 4 | . . . . . . . . 2 . . . . . . . . . . . . . . . . . . . . . 1 . 1 Duelist 3 | . . . . . . . . 1 . 1 . . . . . . . . . . . . 1 . . . . . . . . . Sentry 43 | . . . . . 3 5 5 3 2 . . . 1 2 10 . 2 1 1 . 1 . 3 . . 1 . . . . . 3 Demolisher 2 | . . . . . . . . . . . . . . . . . . . . . . . . 2 . . . . . . . . Specialist 1 | . . . . . . . . 1 . . . . . . . . . . . . . . . . . . . . . . . . Hunter 14 | . . . . . . . 1 1 . . . . 1 2 . . . . . . . . 2 1 . 2 . . . . 2 2 Programmer 29 | . . . . . . 2 . 2 2 1 1 . . 2 . . . . 2 1 . . . 2 . . . . . 1 8 5 Behemoth 1 | . . . . . . . . . . . . . . . . . . . 1 . . . . . . . . . . . . . Cetus Guard 2 | . . . . . . . . . . . . . . . . 2 . . . . . . . . . . . . . . . . Striker 2 | . . . . . . . . . . . . . . . . . . . . . . . . . . . . . . 2 . . Executioner 2 | . . . . . . . . . . . . . . . . . . . . . . . . . . . . . . 2 . . Decomposer 1 | . . . . . . . . . . . . . . . . . . . . . . . . . . 1 . . . . . . Packrat 1 | . . . . . . . . . . . . . . . . . . . . . 1 . . . . . . . . . . . Assembled 15 | . . 7 . . . . . . . . . . . . . . . . . . . . . 8 . . . . . . . . Savage 1 | . . . . . . . . . . . . . . . 1 . . . . . . . . . . . . . . . . . Wizard 1 | . . . . . . . . . . . . . . . . . . . . . . . . . . . . . . . . 1 Best Kill Streak 21 | 2 4 3 . 3 3 4 3 10 3 3 1 . 4 6 5 3 4 2 2 1 5 . 5 21 4 6 . 2 1 12 8 7 Combat Bots Only 18 | . 3 3 . 3 3 4 2 10 2 3 1 . 4 5 4 2 1 1 2 1 5 . 5 18 4 6 . 2 . 12 8 6 Max Kills in Single Turn 6 | 1 2 3 . 3 2 3 2 3 1 2 1 . 2 4 2 1 2 1 1 1 4 . 4 6 3 4 . 1 1 5 2 1 Gunslinging 1 | . 1 . . . . . . . . . . . . . . . . . . . . . . . . . . . . . 1 . Exploded 6 | . . 3 . 3 . 3 1 3 . 2 . . 2 3 1 . . . . . 4 . 4 6 3 4 . 1 . 5 . . Melee . | . . . . . . . . . . . . . . . . . . . . . . . . . . . . . . . . . Uniques/NPCs Destroyed . | . . . . . . . . . . . . . . . . . . . . . . . . . . . . . . . . . Combat | -11 -10 -10 -10 -9 -8 -8 -8 -8 -7 -7 -7 -7 -6 -6 -6 -6 -6 -6 -5 -5 -5 -5 -4 -4 -4 -4 -4 -3 -3 -2 -1 -1 -------- Run | Yrd Mat Min Exi Min Mat Gar Mat Gar Fac Low Low Dat Pro Fac Ext Cet Arc Hub Fac Upp Upp War Pro Fac Upp Upp Zhi Pro Res Res Acc Com Hostile Shots Fired 1397 | . 79 55 . 8 27 54 32 91 64 7 2 . 54 73 262 4 1 35 46 5 10 . 85 138 14 36 . 18 . 35 72 90 Missed 385 | . 14 6 . 3 9 13 8 33 21 4 2 . 15 21 74 1 . 10 14 1 4 . 24 31 5 14 . 8 . 13 14 23 Intercepted 20 | . . . . . . . . . . . . . . . . . . . . . . . . 9 . . . . . 4 . 7 Hits 1012 | . 65 49 . 5 18 41 24 58 43 3 . . 39 52 188 3 1 25 32 4 6 . 61 107 9 22 . 10 . 22 58 67 Melee 20 | . . 2 . . . . . 1 . . . . . . . . . . . . . . 4 12 . . . . . . . 1 Projectile 992 | . 65 47 . 5 18 41 24 57 43 3 . . 39 52 188 3 1 25 32 4 6 . 57 95 9 22 . 10 . 22 58 66 AOE 23 | . . 15 . . . . . . . . . . . . . . . . . . . . . 4 . . . . . 1 . 3 Critical Strikes 36 | . 2 1 . . 1 2 . 4 . 1 . . . . 1 1 . . 4 1 1 . 4 2 3 1 . . . 1 2 4 Part Disruptions 8 | . . 2 . . . . . . . . . . . . . . . . . . . . . 2 . . . . . . 3 1 Actively Blocked 1 | . . 1 . . . . . . . . . . . . . . . . . . . . . . . . . . . . . . Damage Taken 13958 | . 750 1099 . 64 283 584 403 994 384 47 . . 523 511 1398 145 153 384 598 83 158 12 793 1690 92 229 . 119 61 505 828 1068 Core 1107 | . 126 110 . 10 42 37 26 35 17 . . . 33 54 185 . . 75 21 23 38 . 58 45 . 35 . 13 . 38 42 44 Absorbed by Shields 3198 | . . . . . . . . . . . . . . . 194 39 . . . . . 12 333 550 99 245 . 126 . 72 423 1105 Reduced by Siege Mode 203 | . . . . . . . . . . . . . . . . . . . . . . . 41 56 . 3 . . . 4 67 32 Redirected to Shielding 6 | . . 6 . . . . . . . . . . . . . . . . . . . . . . . . . . . . . . Ignored by Resistances 171 | . . . . . . . . . . . . . . . 171 . . . . . . . . . . . . . . . . . Regen/Repaired (Parts) 1489 | . . . . . 147 . 72 . . . . . . 169 82 . . . . . . 22 . . . . . . 505 492 . . Core Remaining (%) 79 | 100 . . . 1 . . . 74 . . . . 92 . . . . 63 . . . . 86 . . . . 91 100 97 . 87 Volleys Fired 1188 | 5 105 63 . 6 44 52 37 83 50 17 3 . 15 44 81 7 70 27 55 4 16 3 41 63 2 25 . 12 26 52 61 119 Largest 3 | 2 2 2 . 1 2 2 2 2 3 3 3 . 3 3 3 1 3 3 3 3 3 2 3 3 1 1 . 3 1 3 3 3 Hottest 310 | 60 115 115 . 30 88 105 105 86 111 111 111 . 111 125 155 69 145 160 310 150 150 70 150 160 50 105 . 175 113 190 135 236 Shots Fired 2033 | 8 192 94 . 6 82 85 68 114 85 27 5 . 25 72 236 7 106 59 88 12 23 5 79 83 4 25 . 17 26 62 91 247 Gun 1424 | 8 181 65 . 2 82 71 65 76 52 15 3 . 15 42 233 . 106 39 54 12 20 5 66 27 2 . . 5 . 10 48 120 Cannon 430 | . . . . . . 1 1 9 33 8 2 . 4 29 2 1 . 20 34 . 2 . . 42 . 6 . 5 26 42 43 120 Launcher 161 | . . 29 . 4 . 13 2 29 . 4 . . 6 1 1 6 . . . . 1 . 13 14 2 19 . 7 . 10 . . Special 18 | . 11 . . . . . . . . . . . . . . . . . . . . . . . . . . . . . . 7 Kinetic 891 | 3 56 24 . 2 39 37 28 39 35 10 2 . 10 28 155 . 49 37 42 7 6 5 43 27 2 . . 5 . 10 33 157 Thermal 931 | 5 136 41 . . 43 34 37 37 50 13 3 . 5 42 78 . 57 22 46 5 16 . 23 42 . 6 . 5 26 40 51 68 Explosive 83 | . . 29 . 4 . 13 2 17 . . . . 2 1 1 . . . . . 1 . 2 3 2 4 . . . 2 . . Electromagnetic 121 | . . . . . . 1 1 21 . 4 . . 8 1 2 7 . . . . . . 11 11 . 15 . 7 . 10 7 15 Robot Hit Streak 57 | 2 10 4 . 2 14 23 26 17 18 5 6 . 8 27 17 2 15 6 7 2 5 10 14 12 . . . 7 6 17 57 22 Robot Miss Streak 6 | 1 6 4 . 1 3 2 2 2 2 2 . . 5 1 3 . 5 2 3 2 1 . 3 1 . . . . 1 5 1 2 Penetration Max 1 | . . . . . . . . . . . . . . . 1 . 1 1 1 . . 1 . 1 . . . . . . 1 1 Secondary Targets 12 | . 1 . . . . . . . . . . . . . 5 . . . . . . . 2 . . . . . . . 2 2 Max Gunslinging Chain 1 | . 1 . . . . . . . . . . . . . 1 . . . . . . . 1 . . . . . . . 1 1 Shots Hit Robots 1186 | 5 115 34 . 3 57 52 65 77 35 12 2 . 10 37 183 1 66 30 37 5 8 5 46 33 . . . 4 7 24 47 186 Core Hits 865 | 4 43 31 . 4 27 47 32 88 21 7 2 . 15 27 100 7 27 9 14 3 26 . 43 78 27 29 . 9 2 60 19 64 Critical Kills 12 | . . . . . . . 1 . . . . . . . . . 2 1 1 2 . . . 1 . . . 1 . . 1 2 Critical Parts Destroyed 19 | . . . . . . . . . . . . . . . . . 2 3 4 . . 1 3 . . . . . . . 3 3 Critical Strikes 74 | . 1 2 . . 1 . 7 8 2 . . . 1 1 12 . 7 4 5 2 . 1 3 1 . . . 1 . . 4 11 Burn 30 | . 1 2 . . 1 . 5 4 2 . . . 1 1 10 . 3 . . . . . . . . . . . . . . . Destroy 34 | . . . . . . . 1 . . . . . . . . . 4 4 5 2 . 1 3 1 . . . 1 . . 4 8 Blast 3 | . . . . . . . . . . . . . . . . . . . . . . . . . . . . . . . . 3 Sever 2 | . . . . . . . . . . . . . . . 2 . . . . . . . . . . . . . . . . . Impale 5 | . . . . . . . 1 4 . . . . . . . . . . . . . . . . . . . . . . . . Melee Attacks 161 | . . . . 2 26 11 54 43 5 . . . . . 20 . . . . . . . . . . . . . . . . . Impact . | . . . . . . . . . . . . . . . . . . . . . . . . . . . . . . . . . Slashing 3 | . . . . . . . . . . . . . . . 3 . . . . . . . . . . . . . . . . . Piercing 141 | . . . . 2 26 11 54 43 5 . . . . . . . . . . . . . . . . . . . . . . . Sneak Attacks 30 | . . . . . . . 10 . . . . . . . 20 . . . . . . . . . . . . . . . . . Combat Hostiles . | . . . . . . . . . . . . . . . . . . . . . . . . . . . . . . . . . Follow-up Attacks . | . . . . . . . . . . . . . . . . . . . . . . . . . . . . . . . . . Damage Inflicted 43849 | 58 1477 1118 . 185 965 1691 1829 3701 728 496 50 . 773 1449 3963 363 1751 1033 1232 169 853 138 2345 3482 770 1025 . 424 251 3054 1783 6693 Guns 20765 | 58 1477 394 . 6 937 1009 1038 851 662 219 50 . 114 733 3032 . 1751 739 1048 169 225 138 1111 496 . . . 23 . 197 1476 2812 Cannons 6105 | . . . . . . . 32 189 66 . . . 117 32 25 26 . 294 184 . . . . 233 . 38 . 37 251 393 307 3881 Explosions 15608 | . . 724 . 179 . 682 172 2090 . 277 . . 542 684 721 337 . . . . 628 . 1234 2753 770 987 . 364 . 2464 . . Melee 1371 | . . . . . 28 . 587 571 . . . . . . 185 . . . . . . . . . . . . . . . . . Ramming . | . . . . . . . . . . . . . . . . . . . . . . . . . . . . . . . . . Kinetic 14347 | 25 451 77 . 6 418 348 333 387 316 119 25 . 54 426 1813 . 931 739 827 98 50 138 659 496 . . . 23 . 197 920 4471 Thermal 12172 | 33 1026 516 . . 519 661 705 521 412 100 25 . 140 307 1398 . 820 294 405 71 175 . 452 642 . 97 . 37 251 309 556 1700 Explosive 10552 | . . 525 . 179 . 682 172 1477 . . . . 247 684 542 . . . . . 628 . 740 1612 770 569 . . . 1725 . . Electromagnetic 5407 | . . . . . . . 32 745 . 277 . . 332 32 25 363 . . . . . . 494 732 . 359 . 364 . 823 307 522 Impact . | . . . . . . . . . . . . . . . . . . . . . . . . . . . . . . . . . Slashing 185 | . . . . . . . . . . . . . . . 185 . . . . . . . . . . . . . . . . . Piercing 1186 | . . . . . 28 . 587 571 . . . . . . . . . . . . . . . . . . . . . . . . Highest Corruption 68 | . . . . . . 1 1 3 2 2 2 2 2 1 3 25 25 68 2 2 2 2 1 8 8 12 12 14 . . 11 12 Average Corruption 4 | . . . . . . 1 1 2 1 2 2 2 2 1 1 17 23 20 1 2 2 2 1 7 8 8 12 8 . . 6 8 Corruption Purged 26 | . . . . . . . . . . . . . . . . . 6 . . . . . . . . . . 9 . . . 11 Corruption Blocked . | . . . . . . . . . . . . . . . . . . . . . . . . . . . . . . . . . Effects 389 | . . . . . . 2 16 25 10 11 8 1 12 . 18 25 27 32 2 16 13 . 7 18 25 21 8 25 . . 23 44 Message Errors 102 | . . . . . . 2 6 3 5 2 2 1 3 . 9 5 6 6 1 4 4 . 4 5 4 6 1 3 . . 5 15 Matter Fused 96 | . . . . . . . 2 10 1 2 1 . 5 . 1 11 3 2 1 5 4 . 1 6 9 6 1 11 . . 6 8 Heat Flow Errors 36 | . . . . . . . . 6 1 2 2 . 1 . . 4 2 4 . 1 . . . 1 2 3 1 . . . 1 5 Energy Discharges 34 | . . . . . . . 2 1 1 2 1 . . . 2 2 2 1 . 3 1 . . 3 3 . . 3 . . 3 4 Parts Rejected 4 | . . . . . . . . 1 . . . . . . 2 . . . . . . . . . . . . . . . . 1 Parts Fused 4 | . . . . . . . . . . . . . . . 1 . 1 . . . . . . . . . . 1 . . . 1 Data Loss (minor) 43 | . . . . . . . 3 3 . 1 2 . 2 . 1 2 3 3 . 1 2 . 1 1 2 5 4 3 . . 2 2 Data Loss (major) 26 | . . . . . . . 1 1 1 2 . . 1 . 2 1 . 6 . . 1 . . . 3 1 1 1 . . 3 1 Misfires 20 | . . . . . . . 2 . 1 . . . . . . . 2 3 . 2 1 . 1 1 2 . . 3 . . . 2 Alerts 8 | . . . . . . . . . . . . . . . . . 2 2 . . . . . 1 . . . . . . 1 2 Weapon Failures 16 | . . . . . . . . . . . . . . . . . 6 5 . . . . . . . . . . . . 2 3 Overload Shots 1 | . . . . . . . . . . . . . . . . . . . 1 . . . . . . . . . . . . . Overflow Damage 337 | . . . . 10 . 2 78 32 . . . . . 11 33 . . 20 6 . . . 18 58 . . . . 10 18 . 41 Projectiles 82 | . . . . . . . . . . . . . . . . . . 20 6 . . . . 5 . . . . 10 . . 41 Explosions 145 | . . . . 10 . 2 . . . . . . . 11 33 . . . . . . . 18 53 . . . . . 18 . . Melee 110 | . . . . . . . 78 32 . . . . . . . . . . . . . . . . . . . . . . . . Knockbacks 17 | . . . . . . . . . . . . . . . . . . . . . . . . . . . . . . . . 17 Impact . | . . . . . . . . . . . . . . . . . . . . . . . . . . . . . . . . . Kinetic 16 | . . . . . . . . . . . . . . . . . . . . . . . . . . . . . . . . 16 Secondary 1 | . . . . . . . . . . . . . . . . . . . . . . . . . . . . . . . . 1 Self-Inflicted Damage 798 | . . 47 . 19 . . 19 162 . . . . . 25 . . . . . . 24 . 243 213 . 8 . 38 . . . . Shots 39 | . . 2 . 1 . . 2 8 . . . . . 2 . . . . . . 1 . 11 9 . 1 . 2 . . . . Rammed . | . . . . . . . . . . . . . . . . . . . . . . . . . . . . . . . . . Targets Rammed . | . . . . . . . . . . . . . . . . . . . . . . . . . . . . . . . . . Kicked . | . . . . . . . . . . . . . . . . . . . . . . . . . . . . . . . . . Crushed . | . . . . . . . . . . . . . . . . . . . . . . . . . . . . . . . . . Highest Temperature 378 | . 220 262 . 1 61 79 70 226 119 182 253 . 197 197 222 208 151 305 378 180 206 15 270 267 118 185 98 . . . 126 261 Average Temperature 61 | . 54 75 . 1 20 25 14 50 24 50 81 . 56 40 49 101 49 85 81 61 95 9 112 51 54 75 69 . . . 55 45 Received Heat Transfer 2869 | . 411 296 . . 108 234 144 342 81 . . . 30 87 502 . . 87 63 . 18 . 48 258 32 10 . 20 . 47 . 51 Effects 4 | . . . . . . . . . . . . . . . . . . . . . . . 3 1 . . . . . . . . Interference 4 | . . . . . . . . . . . . . . . . . . . . . . . 3 1 . . . . . . . . Siege Activations 15 | . . . . . . . . . . . . . . . . . . . . 1 . . 2 2 1 1 . . . 1 1 6 Total Turns 250 | . . . . . . . . . . . . . . . . . . . . 3 . . 36 33 2 10 . . . 28 47 91 Longest Duration 47 | . . . . . . . . . . . . . . . . . . . . 3 . . 24 17 2 10 . . . 28 47 38 Martial Activations . | . . . . . . . . . . . . . . . . . . . . . . . . . . . . . . . . . Shielding Activations . | . . . . . . . . . . . . . . . . . . . . . . . . . . . . . . . . . Robots Disrupted . | . . . . . . . . . . . . . . . . . . . . . . . . . . . . . . . . . Combat Hostiles . | . . . . . . . . . . . . . . . . . . . . . . . . . . . . . . . . . Robots Corrupted 21 | . . . . . . . . 1 . . . . 1 . . 2 . . . . . . 3 3 . 2 . 1 . 4 1 3 Combat Hostiles 21 | . . . . . . . . 1 . . . . 1 . . 2 . . . . . . 3 3 . 2 . 1 . 4 1 3 Parts Fried 48 | . . . . . . . . 4 . 1 . . 5 . . 2 . . . . . . 4 8 . 3 . 6 . 11 1 3 Impact Corruptions 1 | . . . . . . . . . . . . . . . . . . . . . . . . . . . . . . . . 1 Robots Melted 1 | . . . . . . . . . . . . . . . . . 1 . . . . . . . . . . . . . . . Combat Hostiles . | . . . . . . . . . . . . . . . . . . . . . . . . . . . . . . . . . Parts Melted 48 | . 5 . . . 4 1 3 2 1 1 . . . 7 11 . 12 . . . . . . . . . . . . . . 1 Heat Transferred 20637 | 75 2638 1212 . . 1234 1160 1694 1008 840 148 37 . 285 750 3272 . 2150 . 198 74 222 . 555 300 . 87 . 37 259 259 555 1588 Parts Sabotaged . | . . . . . . . . . . . . . . . . . . . . . . . . . . . . . . . . . Parts Stolen . | . . . . . . . . . . . . . . . . . . . . . . . . . . . . . . . . . Parts Stripped . | . . . . . . . . . . . . . . . . . . . . . . . . . . . . . . . . . Power Chain Reactions 9 | . . . . . . . . 3 . . . . 1 . . . . . . . . . 1 3 . 1 . . . . . . Alert | -11 -10 -10 -10 -9 -8 -8 -8 -8 -7 -7 -7 -7 -6 -6 -6 -6 -6 -6 -5 -5 -5 -5 -4 -4 -4 -4 -4 -3 -3 -2 -1 -1 ------- Run | Yrd Mat Min Exi Min Mat Gar Mat Gar Fac Low Low Dat Pro Fac Ext Cet Arc Hub Fac Upp Upp War Pro Fac Upp Upp Zhi Pro Res Res Acc Com Maximum Alert Level 5 | . . 1 . . . 3 2 5 3 . . . . 1 2 1 1 2 1 . . . . 2 . . . . . 2 1 1 Low Security (%) 63 | 100 100 96 . 100 100 9 84 8 . . . . . 96 71 22 61 24 93 . . . . 54 . . . . 100 54 34 21 Level 1 16 | . . 3 . . . 25 10 1 . . . . . 3 16 77 38 62 6 . . . . 5 . . . . . 10 65 78 Level 2 13 | . . . . . . 40 4 26 76 . . . . . 11 . . 12 . . . . . 40 . . . . . 34 . . Level 3 4 | . . . . . . 25 . 23 23 . . . . . . . . . . . . . . . . . . . . . . . Level 4 1 | . . . . . . . . 25 . . . . . . . . . . . . . . . . . . . . . . . . Level 5 1 | . . . . . . . . 13 . . . . . . . . . . . . . . . . . . . . . . . . High Security . | . . . . . . . . . . . . . . . . . . . . . . . . . . . . . . . . . Max Security . | . . . . . . . . . . . . . . . . . . . . . . . . . . . . . . . . . Peak Influence 1665 | 10 127 209 . 122 87 912 444 1665 873 . . . . 257 465 339 230 509 241 . . . . 540 . . . . 6 484 322 383 Initial 873 | . . 4 . . . 3 444 22 873 . . . . 22 122 244 96 53 241 . . . . 137 . . . . . . 264 176 Average 234 | 1 40 55 . 49 11 501 136 913 628 . . . . 98 158 243 183 292 142 . . . . 232 . . . . . 187 228 271 Influence Increases 12556 | 15 551 561 . 131 310 909 429 1703 398 100 30 . 230 521 1105 307 324 758 467 50 145 . 569 691 90 230 . 95 39 718 440 640 Destroy 0b10 Robot/C 6060 | . 300 240 . 60 120 420 200 840 180 80 20 . 200 160 580 160 80 260 160 40 120 . 400 280 80 200 . 60 . 340 200 280 Destroy 0b10 Robot/NC 548 | 15 50 20 . . 55 . 60 15 25 . . . . 10 55 10 45 40 20 . . . 20 38 . . . 10 5 5 . 50 Destroy Leader 1024 | . 78 60 . 10 48 10 80 50 54 20 10 . 30 50 76 . . 78 52 10 10 . 30 40 10 30 . 10 . 50 40 88 Allied During Kill 900 | . . 2 . . . . . 16 10 . . . . . 274 123 109 214 46 . . . 104 2 . . . . . . . . Successful Hack 277 | . 5 . . . 50 . 36 21 19 . . . . 44 3 8 . 16 37 . . . . 9 . . . . . . 8 21 Select Force Hacks 110 | . 60 . . . . . . . . . . . . . . . . 50 . . . . . . . . . . . . . . Disable Machine 657 | . 15 105 . 45 15 45 . 60 15 . . . . . 30 . 75 45 15 . . . . 72 . . . . . 30 30 60 Anti-Garrison Action 1200 | . . . . . . 300 . 500 . . . . . 200 . . . . . . . . . . . . . . . 200 . . Destroy Structure 1225 | . 13 134 . 16 22 89 53 141 35 . . . . 57 27 6 15 25 92 . . . . 220 . . . . 34 93 87 66 Partial Spotted 15 | . . . . . . . . . . . . . . . . . . . . . . . . . . . . . . . . 15 Lose Combat Pursuer 540 | . 30 . . . . 45 . 60 60 . . . . . 60 . . 30 45 . 15 . 15 30 . . . 15 . . 75 60 Influence Decreases 12308 | 15 538 433 141 131 304 3 1306 73 1494 605 94 . 194 306 919 503 411 419 851 159 145 . 350 458 486 200 86 95 39 277 605 668 Entered New Map 3149 | . . 9 141 . . 3 468 13 792 211 13 . . 14 129 193 145 101 252 41 . . . 82 168 11 86 . . . 177 100 Time Decay 8026 | 15 498 401 . 131 304 . 628 . 482 394 81 . 194 292 550 270 206 278 559 118 145 . 270 346 318 189 . 95 39 277 428 518 Lost Part 213 | . 40 3 . . . . 20 20 10 . . . . . 60 . . . . . . . . 10 . . . . . . . 50 Lost Ally 620 | . . 20 . . . . 40 40 60 . . . . . 180 40 60 40 40 . . . 80 20 . . . . . . . . Purge Threat 300 | . . . . . . . 150 . 150 . . . . . . . . . . . . . . . . . . . . . . . Squads Dispatched 47 | . 4 . . . 2 . 2 . 2 . . . . 5 2 . . 8 3 . . . 2 4 . . . . 4 1 4 4 Investigation 11 | . 3 . . . . . . . . . . . . 1 . . . 2 1 . . . 1 . . . . . 2 1 . . Extermination 18 | . . . . . . . . . 2 . . . . 3 . . . 1 2 . . . . 2 . . . . . . 4 4 Reinforcement 12 | . 1 . . . 1 . 1 . . . . . . 1 2 . . 2 . . . . 1 1 . . . . 2 . . . Assault 1 | . . . . . . . . . . . . . . . . . . . . . . . . 1 . . . . . . . . Garrison 5 | . . . . . 1 . 1 . . . . . . . . . . 3 . . . . . . . . . . . . . . Intercept . | . . . . . . . . . . . . . . . . . . . . . . . . . . . . . . . . . Searches Triggered . | . . . . . . . . . . . . . . . . . . . . . . . . . . . . . . . . . Data Miner Redirects 2 | . . . . . . . . . . . . . . 1 . . . . . . . . . 1 . . . . . . . . Construction Impeded 2 | . . . . . . . . . . . . . . . . . . 1 . . . . 1 . . . . . . . . . Haulers Reinforced . | . . . . . . . . . . . . . . . . . . . . . . . . . . . . . . . . . Active Scanning Responses . | . . . . . . . . . . . . . . . . . . . . . . . . . . . . . . . . . Cargo Convoy Interrupts . | . . . . . . . . . . . . . . . . . . . . . . . . . . . . . . . . . Stealth | -11 -10 -10 -10 -9 -8 -8 -8 -8 -7 -7 -7 -7 -6 -6 -6 -6 -6 -6 -5 -5 -5 -5 -4 -4 -4 -4 -4 -3 -3 -2 -1 -1 --------- Run | Yrd Mat Min Exi Min Mat Gar Mat Gar Fac Low Low Dat Pro Fac Ext Cet Arc Hub Fac Upp Upp War Pro Fac Upp Upp Zhi Pro Res Res Acc Com Distress Signals 35 | . 2 . . . 1 . 1 . 1 . . . . 1 4 2 . 1 3 . . . 1 2 . . . . 3 8 2 3 Communications Jammed 40 | . . . . . . . . . . . . . . 9 . . . . 12 . . . 6 . . . . 1 . . 11 1 Distress Signals 38 | . . . . . . . . . . . . . . 8 . . . . 12 . . . 6 . . . . . . . 11 1 Times Spotted 461 | . 25 18 . 3 20 24 21 43 15 4 1 . 12 10 37 8 27 10 12 2 6 24 23 24 5 8 . 6 3 26 14 30 Peak Tracking Total 12 | . 4 4 . 3 4 7 2 10 4 3 1 . 4 3 6 5 2 4 4 1 5 12 5 9 4 4 . 3 1 9 6 6 Tactical Retreats 23 | . 2 . . . . 2 . 2 3 . . . . . 3 . . 1 1 . 1 . 1 2 . . . 1 . . 1 3 Traps | -11 -10 -10 -10 -9 -8 -8 -8 -8 -7 -7 -7 -7 -6 -6 -6 -6 -6 -6 -5 -5 -5 -5 -4 -4 -4 -4 -4 -3 -3 -2 -1 -1 ------- Run | Yrd Mat Min Exi Min Mat Gar Mat Gar Fac Low Low Dat Pro Fac Ext Cet Arc Hub Fac Upp Upp War Pro Fac Upp Upp Zhi Pro Res Res Acc Com Traps Triggered 20 | . 2 . . . 1 . . 9 . . . . . . 4 . . . . . . . 1 1 . . . . . . 1 1 Indirectly 3 | . . . . . . . . 3 . . . . . . . . . . . . . . . . . . . . . . . . Trap Hack Attempts . | . . . . . . . . . . . . . . . . . . . . . . . . . . . . . . . . . Triggered . | . . . . . . . . . . . . . . . . . . . . . . . . . . . . . . . . . Disarmed . | . . . . . . . . . . . . . . . . . . . . . . . . . . . . . . . . . Reprogrammed . | . . . . . . . . . . . . . . . . . . . . . . . . . . . . . . . . . Reused . | . . . . . . . . . . . . . . . . . . . . . . . . . . . . . . . . . Traps Extracted . | . . . . . . . . . . . . . . . . . . . . . . . . . . . . . . . . . Installed . | . . . . . . . . . . . . . . . . . . . . . . . . . . . . . . . . . Triggered . | . . . . . . . . . . . . . . . . . . . . . . . . . . . . . . . . . Machines | -11 -10 -10 -10 -9 -8 -8 -8 -8 -7 -7 -7 -7 -6 -6 -6 -6 -6 -6 -5 -5 -5 -5 -4 -4 -4 -4 -4 -3 -3 -2 -1 -1 ---------- Run | Yrd Mat Min Exi Min Mat Gar Mat Gar Fac Low Low Dat Pro Fac Ext Cet Arc Hub Fac Upp Upp War Pro Fac Upp Upp Zhi Pro Res Res Acc Com Machines Disabled 57 | . 2 7 . 3 1 6 . 10 1 . . . . . 2 . 5 3 1 . . . 3 5 . . . . . 2 2 4 Max in Single Turn 6 | . 1 6 . 3 1 1 . 1 1 . . . . . 1 . 1 1 1 . . . . 1 . . . . . 1 1 1 Garrison Access 8 | . . . . . . . . . 1 . . . . 1 . . . 1 1 . . . . 1 . . . . 1 2 . . Garrison Relay 9 | . . . . . . 3 . 6 . . . . . . . . . . . . . . . . . . . . . . . . Network Hub 1 | . . . . . . . . . . . . . . . . . . 1 . . . . . . . . . . . . . . Energy Cycler 1 | . . . . . . . . . . . . . . . 1 . . . . . . . . . . . . . . . . . Machines Repaired . | . . . . . . . . . . . . . . . . . . . . . . . . . . . . . . . . . Machines Dismantled . | . . . . . . . . . . . . . . . . . . . . . . . . . . . . . . . . . Machines Sabotaged 1 | . . . . . . . . . . . . . . . . . . 1 . . . . . . . . . . . . . . Overloaded Fab Kills . | . . . . . . . . . . . . . . . . . . . . . . . . . . . . . . . . . Hacking | -11 -10 -10 -10 -9 -8 -8 -8 -8 -7 -7 -7 -7 -6 -6 -6 -6 -6 -6 -5 -5 -5 -5 -4 -4 -4 -4 -4 -3 -3 -2 -1 -1 --------- Run | Yrd Mat Min Exi Min Mat Gar Mat Gar Fac Low Low Dat Pro Fac Ext Cet Arc Hub Fac Upp Upp War Pro Fac Upp Upp Zhi Pro Res Res Acc Com Machines Accessed 104 | . 8 . 2 . 16 2 10 3 4 . 2 4 1 8 3 2 . 5 8 2 . 1 1 3 1 1 4 . 1 2 6 4 Terminals 62 | . 6 . . . 11 2 8 3 2 . 1 . 1 5 2 2 . 4 4 . . . 1 1 1 . . . . . 4 4 Fabricators 2 | . . . . . . . . . . . . . . . . . . . 2 . . . . . . . . . . . . . Repair Stations 6 | . . . . . 2 . 1 . . . . . . 1 1 . . . . . . . . . . . . . 1 . . . Recycling Units 6 | . 2 . . . 1 . . . 1 . . . . 1 . . . . . . . . . . . . . . . 1 . . Scanalyzers 1 | . . . . . 1 . . . . . . . . . . . . . . . . . . . . . . . . . . . Garrison Access 12 | . . . . . 1 . 1 . 1 . . . . 1 . . . 1 2 . . . . 2 . . . . . 1 2 . Total Hacks 312 | . 19 . 2 . 62 4 35 5 10 . 2 34 1 26 5 5 . 7 26 6 . 1 1 11 1 7 17 . 2 4 11 8 Successful 197 | . 11 . 2 . 31 1 25 2 7 . 2 34 1 14 3 2 . 5 12 6 . 1 1 5 1 7 17 . 1 1 2 3 Failed 114 | . 8 . . . 30 3 10 3 3 . . . . 12 2 3 . 2 14 . . . . 6 . . . . 1 3 9 5 Catastrophic 20 | . 2 . . . 1 2 . 1 . . . . . 3 . 2 . 1 4 . . . . 1 . . . . 1 . 2 . Database Lockouts 1 | . . . . . 1 . . . . . . . . . . . . . . . . . . . . . . . . . . . Manual 124 | . 16 . 1 . 33 . 19 . 5 . . . . 16 3 1 . 5 12 . . 1 . 3 . . . . 2 1 3 3 Terminals 184 | . 15 . . . 47 4 30 5 8 . 1 . 1 19 3 5 . 6 16 . . . 1 6 1 . . . . . 8 8 Fabricators 7 | . . . . . . . . . . . . . . . . . . . 7 . . . . . . . . . . . . . Repair Stations 15 | . . . . . 5 . 3 . . . . . . 3 2 . . . . . . . . . . . . . 2 . . . Recycling Units 9 | . 4 . . . 2 . . . 1 . . . . 1 . . . . . . . . . . . . . . . 1 . . Scanalyzers 7 | . . . . . 7 . . . . . . . . . . . . . . . . . . . . . . . . . . . Garrison Access 22 | . . . . . 1 . 2 . 1 . . . . 3 . . . 1 3 . . . . 5 . . . . . 3 3 . Terminal Hacks 130 | . 4 . 2 . 12 1 12 2 5 . 2 34 1 6 1 2 . . 5 6 . 1 1 3 1 7 17 . . . 2 3 Record 35 | . . . 1 . . . . . . . 1 11 1 . . 1 . . . 5 . 1 . . 1 7 5 . . . 1 . Part Schematic 17 | . . . . . . . . . . . . 13 . . . . . . . . . . . . . . 4 . . . . . Robot Schematic 7 | . . . . . . . . . . . . 7 . . . . . . . . . . . . . . . . . . . . Robot Analysis 14 | . 3 . . . 3 . 3 . . . . . . 1 . . . . . . . . . . . . 4 . . . . . Prototype ID Bank 9 | . . . . . 1 . . . . . . 3 . . . . . . 1 . . . . . . . 4 . . . . . Open Door 6 | . . . . . . . . 1 . . 1 . . . . 1 . . . 1 . . 1 . . . . . . . . 1 Branch Access Points 5 | . . . . . . . . . 1 . . . . 1 . . . . 1 . . . . 1 . . . . . . 1 . Emergency Access Points 3 | . . . . . 1 . . 1 . . . . . . . . . . 1 . . . . . . . . . . . . . Machine Index 1 | . . . . . . . . . . . . . . . . . . . . . . . . . . . . . . . . 1 Terminal Index 3 | . . . . . . . 1 . 1 . . . . . . . . . . . . . . 1 . . . . . . . . Repair Station Index 1 | . . . . . . . 1 . . . . . . . . . . . . . . . . . . . . . . . . . Recycling Unit Index 1 | . . . . . . . 1 . . . . . . . . . . . . . . . . . . . . . . . . . Garrison Index 1 | . . . . . . . . . . . . . . . . . . . 1 . . . . . . . . . . . . . Alert Level 2 | . . . . . . . 1 . . . . . . . . . . . . . . . . . . . . . . . . 1 Unreport Threat 2 | . . . . . . . 1 . 1 . . . . . . . . . . . . . . . . . . . . . . . Locate Traps 9 | . 1 . . . 4 . 1 . 1 . . . . 2 . . . . . . . . . . . . . . . . . . Maintenance Status 2 | . . . . . . . . . 1 . . . . 1 . . . . . . . . . . . . . . . . . . Recall Reinforcements 1 | . . . . . . . . . . . . . . . 1 . . . . . . . . . . . . . . . . . Hauler Manifests 2 | . . . . . 1 . 1 . . . . . . . . . . . . . . . . . . . . . . . . . Registered Components 1 | . . . . . 1 . . . . . . . . . . . . . . . . . . . . . . . . . . . Registered Prototypes 1 | . . . . . . . 1 . . . . . . . . . . . . . . . . . . . . . . . . . Zone Layout 5 | . . . . . 1 . 1 . . . . . . 1 . . . . 1 . . . . 1 . . . . . . . . Garrison Registry 1 | . . . . . . 1 . . . . . . . . . . . . . . . . . . . . . . . . . . Proto ID Catalog 1 | . . . 1 . . . . . . . . . . . . . . . . . . . . . . . . . . . . . Fabricator Hacks 4 | . . . . . . . . . . . . . . . . . . . 4 . . . . . . . . . . . . . Network Status 1 | . . . . . . . . . . . . . . . . . . . 1 . . . . . . . . . . . . . Load Schematic 1 | . . . . . . . . . . . . . . . . . . . 1 . . . . . . . . . . . . . Build 2 | . . . . . . . . . . . . . . . . . . . 2 . . . . . . . . . . . . . Repair Station Hacks 11 | . . . . . 4 . 3 . . . . . . 2 2 . . . . . . . . . . . . . . . . . Scan Component 6 | . . . . . 2 . 2 . . . . . . 1 1 . . . . . . . . . . . . . . . . . Repair 5 | . . . . . 2 . 1 . . . . . . 1 1 . . . . . . . . . . . . . . . . . Recycling Unit Hacks 4 | . 2 . . . 1 . . . . . . . . 1 . . . . . . . . . . . . . . . . . . Retrieve Components 4 | . 2 . . . 1 . . . . . . . . 1 . . . . . . . . . . . . . . . . . . Scanalyzer 6 | . . . . . 6 . . . . . . . . . . . . . . . . . . . . . . . . . . . Insert Component 3 | . . . . . 3 . . . . . . . . . . . . . . . . . . . . . . . . . . . Analyze 3 | . . . . . 3 . . . . . . . . . . . . . . . . . . . . . . . . . . . Garrison Access Hacks 6 | . . . . . 1 . 1 . 1 . . . . . . . . 1 1 . . . . 1 . . . . . . . . Unlock Access 2 | . . . . . 1 . 1 . . . . . . . . . . . . . . . . . . . . . . . . . Seal Access 4 | . . . . . . . . . 1 . . . . . . . . 1 1 . . . . 1 . . . . . . . . Unauthorized Hacks 36 | . 5 . . . 7 . 9 . 1 . . . . 5 . . . 4 2 . . . . 1 . . . . 1 1 . . Terminals 30 | . 3 . . . 7 . 9 . 1 . . . . 4 . . . 4 1 . . . . 1 . . . . . . . . Track 1 | . . . . . . . 1 . . . . . . . . . . . . . . . . . . . . . . . . . Assimilate 10 | . . . . . 4 . 5 . . . . . . 1 . . . . . . . . . . . . . . . . . . Botnet 15 | . 3 . . . 2 . 2 . 1 . . . . 3 . . . 2 1 . . . . 1 . . . . . . . . Operators 2 | . . . . . 1 . 1 . . . . . . . . . . . . . . . . . . . . . . . . . Sabotage 2 | . . . . . . . . . . . . . . . . . . 2 . . . . . . . . . . . . . . Fabricators 1 | . . . . . . . . . . . . . . . . . . . 1 . . . . . . . . . . . . . Prioritize 1 | . . . . . . . . . . . . . . . . . . . 1 . . . . . . . . . . . . . Repair Stations 1 | . . . . . . . . . . . . . . . . . . . . . . . . . . . . . 1 . . . Patch 1 | . . . . . . . . . . . . . . . . . . . . . . . . . . . . . 1 . . . Recycling Units 2 | . 2 . . . . . . . . . . . . . . . . . . . . . . . . . . . . . . . Tunnel 2 | . 2 . . . . . . . . . . . . . . . . . . . . . . . . . . . . . . . Scanalyzers . | . . . . . . . . . . . . . . . . . . . . . . . . . . . . . . . . . Garrison Access 2 | . . . . . . . . . . . . . . 1 . . . . . . . . . . . . . . . 1 . . Jam 2 | . . . . . . . . . . . . . . 1 . . . . . . . . . . . . . . . 1 . . Data Cores Recovered 1 | . . . . . . . . . . . . . . . . . . . 1 . . . . . . . . . . . . . Used . | . . . . . . . . . . . . . . . . . . . . . . . . . . . . . . . . . Hacking Detections 69 | . 7 . . . 13 2 10 3 3 . . . . 7 1 1 . 2 6 . . . . 2 . . . . 1 2 6 3 Full Trace Events 3 | . 1 . . . . 1 . . . . . . . . . . . . 1 . . . . . . . . . . . . . Feedback Events 1 | . . . . . . 1 . . . . . . . . . . . . . . . . . . . . . . . . . . Corruption 1 | . . . . . . 1 . . . . . . . . . . . . . . . . . . . . . . . . . . Feedback Blocked . | . . . . . . . . . . . . . . . . . . . . . . . . . . . . . . . . . Robot Schematics Acquired 7 | . . . . . . . . . . . . 7 . . . . . . . . . . . . . . . . . . . . Robots Built . | . . . . . . . . . . . . . . . . . . . . . . . . . . . . . . . . . Authchips . | . . . . . . . . . . . . . . . . . . . . . . . . . . . . . . . . . Time . | . . . . . . . . . . . . . . . . . . . . . . . . . . . . . . . . . Total Robot Build Rating . | . . . . . . . . . . . . . . . . . . . . . . . . . . . . . . . . . Part Schematics Acquired 20 | . . . . . 3 . . . . . . 13 . . . . . . . . . . . . . . 4 . . . . . Parts Built 3 | . . . . . . . . . . . . . . . . . . . 3 . . . . . . . . . . . . . Authchips . | . . . . . . . . . . . . . . . . . . . . . . . . . . . . . . . . . Time 179 | . . . . . . . . . . . . . . . . . . . 179 . . . . . . . . . . . . . Total Part Build Rating 17 | . . . . . . . . . . . . . . . . . . . 17 . . . . . . . . . . . . . Parts Repaired 5 | . . . . . 2 . 1 . . . . . . 1 1 . . . . . . . . . . . . . . . . . Time 143 | . . . . . 39 . 32 . . . . . . 22 50 . . . . . . . . . . . . . . . . . Parts Recycled . | . . . . . . . . . . . . . . . . . . . . . . . . . . . . . . . . . Recycled Matter . | . . . . . . . . . . . . . . . . . . . . . . . . . . . . . . . . . Retrieved Matter . | . . . . . . . . . . . . . . . . . . . . . . . . . . . . . . . . . Retrieved Components 11 | . 10 . . . 1 . . . . . . . . . . . . . . . . . . . . . . . . . . . Parts Scanalyzed 3 | . . . . . 3 . . . . . . . . . . . . . . . . . . . . . . . . . . . Part Schematics Acquired 3 | . . . . . 3 . . . . . . . . . . . . . . . . . . . . . . . . . . . Parts Damaged . | . . . . . . . . . . . . . . . . . . . . . . . . . . . . . . . . . Bothacking | -11 -10 -10 -10 -9 -8 -8 -8 -8 -7 -7 -7 -7 -6 -6 -6 -6 -6 -6 -5 -5 -5 -5 -4 -4 -4 -4 -4 -3 -3 -2 -1 -1 ------------ Run | Yrd Mat Min Exi Min Mat Gar Mat Gar Fac Low Low Dat Pro Fac Ext Cet Arc Hub Fac Upp Upp War Pro Fac Upp Upp Zhi Pro Res Res Acc Com Used RIF Installer . | . . . . . . . . . . . . . . . . . . . . . . . . . . . . . . . . . Robots Hacked 5 | . . . . . . . . . . . . . . . . . . . . . . . . . . . . . . . . 5 Non-combat . | . . . . . . . . . . . . . . . . . . . . . . . . . . . . . . . . . Combat 5 | . . . . . . . . . . . . . . . . . . . . . . . . . . . . . . . . 5 Robot Hacks Applied 5 | . . . . . . . . . . . . . . . . . . . . . . . . . . . . . . . . 5 parse_system 5 | . . . . . . . . . . . . . . . . . . . . . . . . . . . . . . . . 5 Manual 1 | . . . . . . . . . . . . . . . . . . . . . . . . . . . . . . . . 1 Relay Couplers Released 42 | . . . . . . 11 . 27 . . . . . . . . . . . . . . . . . . . . 3 1 . . Machine Destruction 42 | . . . . . . 11 . 27 . . . . . . . . . . . . . . . . . . . . 3 1 . . Fabnet Peak Effective % . | . . . . . . . . . . . . . . . . . . . . . . . . . . . . . . . . . Robots Rewired 26 | . . . . . . . . 3 . . . . . . 13 . . . . . . . 10 . . . . . . . . . Allies Hacked 1 | . . . . . . . . . . . . . . . . . . . . . . . . 1 . . . . . . . . Hacks Repelled . | . . . . . . . . . . . . . . . . . . . . . . . . . . . . . . . . . Allies | -11 -10 -10 -10 -9 -8 -8 -8 -8 -7 -7 -7 -7 -6 -6 -6 -6 -6 -6 -5 -5 -5 -5 -4 -4 -4 -4 -4 -3 -3 -2 -1 -1 -------- Run | Yrd Mat Min Exi Min Mat Gar Mat Gar Fac Low Low Dat Pro Fac Ext Cet Arc Hub Fac Upp Upp War Pro Fac Upp Upp Zhi Pro Res Res Acc Com Total Allies 42 | . . 2 . . 2 . 2 5 . . . . . . 16 5 . . . . . . 10 . . . . . . . . . Largest Group 13 | . . 2 . . 2 2 3 4 3 . . . . . 13 9 8 4 2 . . . 10 3 . . . . . . . . Highest-Rated Group 732 | . . 53 . . 20 20 30 68 52 . . . . . 424 732 701 319 192 . . . 288 90 . . . . . . . . Highest-Rated Ally 159 | . . 31 . . 10 10 10 31 20 . . . . . 159 159 159 96 96 . . . 56 30 . . . . . . . . Initial Warlord ECA Mod 396 | . . . . . . . 9 9 18 18 18 18 17 17 17 17 17 17 16 16 16 16 15 15 15 15 15 14 14 13 12 12 Total Orders 46 | . . . . . 2 16 13 2 . . . . . . 7 . 2 2 . . . . . 2 . . . . . . . . STAY 22 | . . . . . 1 9 6 1 . . . . . . 2 . 1 1 . . . . . 1 . . . . . . . . FOLLOW 24 | . . . . . 1 7 7 1 . . . . . . 5 . 1 1 . . . . . 1 . . . . . . . . Ally Attacks 342 | . . 12 . . . . . 26 14 . . . . . 116 38 29 47 24 . . . 27 9 . . . . . . . . Total Damage 8183 | . . 86 . . . . . 410 191 . . . . . 1882 1371 880 1527 770 . . . 833 233 . . . . . . . . Kills 50 | . . 1 . . . . . 2 3 . . . . . 11 7 2 16 4 . . . 4 . . . . . . . . . Allies Corrupted 1 | . . . . . . . . . . . . . . . . . . . . . . . . 1 . . . . . . . . Allies Melted 3 | . . . . . . . . . . . . . . . . . . . . . . . . . . . . . . 3 . . Intel | -11 -10 -10 -10 -9 -8 -8 -8 -8 -7 -7 -7 -7 -6 -6 -6 -6 -6 -6 -5 -5 -5 -5 -4 -4 -4 -4 -4 -3 -3 -2 -1 -1 ------- Run | Yrd Mat Min Exi Min Mat Gar Mat Gar Fac Low Low Dat Pro Fac Ext Cet Arc Hub Fac Upp Upp War Pro Fac Upp Upp Zhi Pro Res Res Acc Com Active Infowar (turns) 22102 | 18 1368 1468 511 316 243 . . . 1233 965 676 99 568 511 92 . . 415 1628 1247 1121 502 1053 861 709 648 280 947 741 1644 1058 1180 Optics 1233 | . . . . . . . . . 1233 . . . . . . . . . . . . . . . . . . . . . . . Sensors 8646 | . . . . . . . . . . 965 676 96 568 473 . . . . . 984 1090 411 946 68 707 488 274 897 3 . . . Terrain 4872 | . . . . . . . . . . . . . . . . . . . 633 . 231 320 . 803 49 . . 27 738 1114 951 6 Seismic 3924 | 18 1368 1468 511 316 243 . . . . . . . . . . . . . . . . . . . . . . . . . . . T.N.C. 387 | . . . . . . . . . . . . . . . . . . 387 . . . . . . . . . . . . . . Cloaking 4569 | . . . . . . . . . . . . . . . . . . . . . . 1 . 791 49 . . . 731 1159 981 857 Jamming 8657 | . . . . . . . . . . . . 3 . 126 92 . . 384 1441 263 586 93 107 206 13 648 177 23 630 1642 1058 1165 Robot Analysis Total 14 | . 3 . . . 3 . 3 . . . . . . 1 . . . . . . . . . . . . 4 . . . . . Derelict Logs Recovered 14 | . . 2 . 1 . . . . . 2 2 . 1 . . . . . . . 1 . 2 . 3 . . . . . . . Drone Launches . | . . . . . . . . . . . . . . . . . . . . . . . . . . . . . . . . . Drone Recoveries . | . . . . . . . . . . . . . . . . . . . . . . . . . . . . . . . . . Exploration | -11 -10 -10 -10 -9 -8 -8 -8 -8 -7 -7 -7 -7 -6 -6 -6 -6 -6 -6 -5 -5 -5 -5 -4 -4 -4 -4 -4 -3 -3 -2 -1 -1 ------------- Run | Yrd Mat Min Exi Min Mat Gar Mat Gar Fac Low Low Dat Pro Fac Ext Cet Arc Hub Fac Upp Upp War Pro Fac Upp Upp Zhi Pro Res Res Acc Com Turns Passed 36749 | 98 2050 1828 511 316 3176 1602 2166 2089 1242 1041 683 101 765 1028 1679 590 436 618 1653 1249 1125 800 1257 1096 709 648 280 969 741 1644 1058 1501 Spaces Moved 19661 | 43 733 714 291 119 1696 867 1224 1077 849 849 599 82 624 666 827 321 124 296 802 731 614 357 615 505 413 340 156 549 409 898 588 683 Core 3 | 2 . . . . . 1 . . . . . . . . . . . . . . . . . . . . . . . . . . Treads 8376 | 40 55 133 . . . . . 3 . . . . . . . 65 124 296 802 731 614 357 615 505 413 340 156 549 409 898 588 683 Legs . | . . . . . . . . . . . . . . . . . . . . . . . . . . . . . . . . . Wheels 11282 | 1 678 581 291 119 1696 866 1224 1074 849 849 599 82 624 666 827 256 . . . . . . . . . . . . . . . . Hover . | . . . . . . . . . . . . . . . . . . . . . . . . . . . . . . . . . Flight . | . . . . . . . . . . . . . . . . . . . . . . . . . . . . . . . . . Fastest Speed 50 | 50 160 140 175 175 135 150 135 135 108 111 111 111 111 111 111 115 160 160 160 165 165 165 165 163 165 162 162 162 158 140 143 143 Average Speed 148 | 153 182 212 175 175 149 151 140 150 114 114 111 111 111 111 115 149 160 160 164 165 165 165 165 165 165 164 162 162 159 151 145 143 Slowest Speed 1650 | 160 480 320 175 175 195 1650 150 320 150 115 111 111 111 111 130 240 160 160 165 165 165 165 165 246 165 165 162 162 162 158 227 215 Overloaded Moves . | . . . . . . . . . . . . . . . . . . . . . . . . . . . . . . . . . Propulsion Burnouts . | . . . . . . . . . . . . . . . . . . . . . . . . . . . . . . . . . Robots Hopped . | . . . . . . . . . . . . . . . . . . . . . . . . . . . . . . . . . Potential Cave-ins 3 | . . . . . . . . . . . . . . . . . . . . . . . . . . . . . . . 3 . Cave-ins Triggered . | . . . . . . . . . . . . . . . . . . . . . . . . . . . . . . . . . Exploration Rate (%) 56 | 4 95 95 70 19 84 58 58 83 23 96 85 68 80 19 83 76 81 38 21 83 70 57 57 20 70 65 60 59 13 28 20 26 Regions Visited 32 Branch Regions 20 Pre-discovered Areas 10 | . 2 . 1 . . . . . . 1 . 1 1 . . . . . . . 1 . . . . . 3 . . . . . Known Exits Taken 25 | . . . . . 1 . 1 . 1 1 1 1 1 1 1 1 1 1 1 1 1 1 1 1 1 1 1 1 1 1 1 . Unknown Exits Taken 5 | 1 1 1 1 1 . . . . . . . . . . . . . . . . . . . . . . . . . . . . Scrap Searched 21 | . . 1 . . . . . . . 3 3 . 4 . . . . . . 2 2 . 2 . 2 1 . 1 . . . . Spaces Dug 414 | . 8 28 . 9 22 12 38 13 31 7 1 . 4 26 . . . 8 28 1 4 . 7 43 . 33 . 4 14 31 32 10 Terrain Destroyed 1163 | . 9 237 . 23 22 40 52 59 33 8 1 . 17 58 33 . 20 23 44 5 32 . 16 125 52 138 . 6 19 33 34 24 Melee 66 | . . . . 2 22 . 38 1 3 . . . . . . . . . . . . . . . . . . . . . . . Projectile 337 | . 9 . . . . . . . 30 8 1 . . 27 1 . 20 23 44 5 9 . 11 35 1 . . 6 19 31 34 23 AOE 759 | . . 237 . 21 . 40 14 58 . . . . 17 31 32 . . . . . 23 . 5 90 51 138 . . . 2 . . Terrain Rammed . | . . . . . . . . . . . . . . . . . . . . . . . . . . . . . . . . . Walls Destroyed . | . . . . . . . . . . . . . . . . . . . . . . . . . . . . . . . . . Machines Disabled . | . . . . . . . . . . . . . . . . . . . . . . . . . . . . . . . . . Actions | -11 -10 -10 -10 -9 -8 -8 -8 -8 -7 -7 -7 -7 -6 -6 -6 -6 -6 -6 -5 -5 -5 -5 -4 -4 -4 -4 -4 -3 -3 -2 -1 -1 --------- Run | Yrd Mat Min Exi Min Mat Gar Mat Gar Fac Low Low Dat Pro Fac Ext Cet Arc Hub Fac Upp Upp War Pro Fac Upp Upp Zhi Pro Res Res Acc Com Total 25223 | 65 1232 926 294 219 2247 1062 1557 1391 1052 893 612 90 673 900 1421 430 263 382 1049 763 699 564 772 667 435 392 183 607 472 1118 721 1072 Wait 2907 | . 319 102 . 89 375 97 205 96 110 1 . . 10 147 375 36 47 36 162 16 44 173 33 70 8 . . 19 2 80 43 212 Move 19630 | 42 732 713 290 118 1696 865 1224 1076 848 848 598 81 623 665 826 320 123 295 801 730 613 356 614 504 412 339 155 548 408 897 587 683 Hop . | . . . . . . . . . . . . . . . . . . . . . . . . . . . . . . . . . Pick Up 203 | 10 27 9 3 . 33 1 1 6 8 3 2 . 3 6 13 14 2 3 3 1 2 5 2 6 . 4 3 3 8 11 5 6 Fast Attach 126 | 6 4 1 . . 7 . 4 1 3 4 . 3 . 7 7 11 9 . 5 . 2 6 4 . 3 2 10 1 4 12 3 7 Attach 62 | 1 4 11 . 1 5 . 1 2 2 . . . . . 6 2 . 4 . . . . . 7 . . . 3 3 2 1 7 Detach 13 | . . 3 . 1 1 . . . . . . . . . . . . 1 . . . . . . 3 . . 1 . . 1 2 Swap 506 | . 22 21 . 2 23 27 22 44 15 14 7 3 18 18 24 11 2 13 16 11 17 9 26 14 6 15 3 17 10 33 14 29 Drop 300 | 1 19 3 1 . 37 9 9 14 11 6 2 3 4 13 16 29 10 3 7 1 5 12 4 3 1 7 12 3 11 31 6 7 Fire 1188 | 5 105 63 . 6 44 52 37 83 50 17 3 . 15 44 81 7 70 27 55 4 16 3 41 63 2 25 . 12 26 52 61 119 Melee 161 | . . . . 2 26 11 54 43 5 . . . . . 20 . . . . . . . . . . . . . . . . . Ram . | . . . . . . . . . . . . . . . . . . . . . . . . . . . . . . . . . Kick . | . . . . . . . . . . . . . . . . . . . . . . . . . . . . . . . . . Crush . | . . . . . . . . . . . . . . . . . . . . . . . . . . . . . . . . . Escape Stasis 23 | . . . . . . . . 7 . . . . . . 16 . . . . . . . . . . . . . . . . . Rewire 104 | . . . . . . . . 19 . . . . . . 37 . . . . . . . 48 . . . . . . . . . Trap . | . . . . . . . . . . . . . . . . . . . . . . . . . . . . . . . . . Miscellaneous . | . . . . . . . . . . . . . . . . . . . . . . . . . . . . . . . . . Route ------- -11/Scrapyard -10/Materials (discovered 5 exits: [*Mat x3] / [*Min x2]) -10/Mines (discovered 3 exits: [*Mat x2] / *Exi) -10/Exiles -9/Mines -8/Materials (discovered 4 exits: *Fac x3 / Gar) -8/Garrison (discovered 3 exits: *Mat x3) -8/Materials -8/Garrison (discovered 3 exits: *Fac x3) -7/Factory (discovered 2 exits: *Low x2) -7/Lower Caves -7/Lower Caves (discovered 2 exits: *Fac / *Dat) -7/Data Miner -6/Proximity Caves -6/Factory (discovered 4 exits: Low x2 / *Ext x2) -6/Extension (discovered 2 exits: *Fac / *Cet) -6/Cetus (discovered 2 exits: *Fac / *Arc) -6/Archives (discovered 3 exits: *Fac / *Hub x2) -6/Hub_04(d) (discovered 2 exits: *Fac x2) -5/Factory (discovered 2 exits: *Upp x2) -5/Upper Caves -5/Upper Caves (discovered 2 exits: *Fac / *War) -5/Warlord -4/Proximity Caves -4/Factory (discovered 3 exits: *Res / *Upp x2) -4/Upper Caves -4/Upper Caves (discovered 2 exits: *Res / *Zhi) -4/Zhirov -3/Proximity Caves -3/Research -2/Research (discovered 2 exits: *Acc / *Tes) -1/Access -1/Command Free Derelict Territories History --------- Turn | Location | Event 15 | -11/Scrapyard | Discovered new exit (range 15) 99 | -11/Scrapyard | Entered Materials 128 | -10/Materials | Discovered new exit (range 5) 301 | -10/Materials | Build established: Mutant 379 | -10/Materials | Discovered new exit (range 9) 958 | -10/Materials | Core integrity fell below 50% 1117 | -10/Materials | Discovered new exit (range 11) 1402 | -10/Materials | Discovered new exit (range 3) 1598 | -10/Materials | Discovered new exit (range 16) 2149 | -10/Materials | Entered Mines 2153 | -10/Mines | Met a Derelict bent on vengeance 2347 | -10/Mines | Discovered new exit (range 12) 2581 | -10/Mines | Assembled infested the area 2663 | -10/Mines | Core integrity fell below 20% 2666 | -10/Mines | Lost 7 parts (1p3n1u2w) 2832 | -10/Mines | Learned location of 1 exit from Materials 3200 | -10/Mines | Learned Materials terminal intel 3745 | -10/Mines | A weapon hastily lodged in a ceiling crevice suddenly fell to the ground 3778 | -10/Mines | Discovered new exit (range 5) 3961 | -10/Mines | Build established: Scavenger-Mutant 3969 | -10/Mines | Deemed a non-threat by the Exiles lab entrance 3970 | -10/Mines | Discovered new exit (range 5) 3977 | -10/Mines | Entered Exiles 4025 | -10/Exiles | Met 8R-AWN 4053 | -10/Exiles | Met EX-HEX 4102 | -10/Exiles | Met EX-BIN 4125 | -10/Exiles | Aligned with FarCom system 4126 | -10/Exiles | Given EX-Vault access code 4167 | -10/Exiles | Opened EX-Vault 4180 | -10/Exiles | Found 0b10 Alert Chip 4215 | -10/Exiles | Warned to stay clear of 0b10 Research branches 4271 | -10/Exiles | Learned location of Zion (-6) 4273 | -10/Exiles | Met EX-DEC 4467 | -10/Exiles | Discovered new exit (range 12) 4488 | -10/Exiles | Left Exiles lab with 0b10 Alert Chip 4488 | -10/Exiles | Entered Mines 4769 | -9/Mines | Discovered new exit (range 10) 4792 | -9/Mines | Learned Materials emergency access door positions 4793 | -9/Mines | Build established: Mutant 4804 | -9/Mines | Entered Materials 4804 | -8/Materials | Evolved 4 slots: Propulsion x2, Utility x2 4805 | -8/Materials | Identified exit to Factory 4807 | -8/Materials | Loaded intel: 12 terminal locations 4906 | -8/Materials | Repaired Lgt. Treads 4968 | -8/Materials | Garrison activated, responded to threat 4988 | -8/Materials | Met 7R-MNS 5105 | -8/Materials | Build established: Scavenger-Mutant 5264 | -8/Materials | Discovered exit to Factory (range 11) 5468 | -8/Materials | Build established: Mutant 6081 | -8/Materials | Discovered exit to Factory (range 8) 6810 | -8/Materials | Central database locked down 6965 | -8/Materials | Repaired Grenade Launcher 7980 | -8/Materials | Identified exit to Garrison 7980 | -8/Materials | Entered Garrison 7980 | -8/Garrison | Accompanied by 2 allies 8106 | -8/Garrison | Triggered checkpoint 8128 | -8/Garrison | Garrison Relay disabled 8356 | -8/Garrison | Triggered checkpoint 8463 | -8/Garrison | Triggered checkpoint 8529 | -8/Garrison | Triggered checkpoint 8582 | -8/Garrison | Triggered checkpoint 8664 | -8/Garrison | Discovered new exit (range 19) 8664 | -8/Garrison | Discovered new exit (range 49) 8664 | -8/Garrison | Discovered new exit (range 63) 8796 | -8/Garrison | Triggered checkpoint 8856 | -8/Garrison | Garrison Relay disabled 9259 | -8/Garrison | Attempted to access garrison exit controls, blocked by remote lockdown 9442 | -8/Garrison | Build established: Scavenger-Mutant 9534 | -8/Garrison | Garrison Relay disabled 9582 | -8/Garrison | Entered Materials 9582 | -8/Materials | Accompanied by 2 allies 9770 | -8/Materials | Repaired Arm. Wheel 10976 | -8/Materials | Garrison activated, responded to threat 11005 | -8/Materials | Build established: Mutant 11748 | -8/Materials | Identified exit to Garrison 11748 | -8/Materials | Entered Garrison 11779 | -8/Garrison | Triggered checkpoint 11936 | -8/Garrison | Garrison Relay disabled 11950 | -8/Garrison | Garrison Relay disabled 11963 | -8/Garrison | Triggered checkpoint 12022 | -8/Garrison | Destroyed 10 combat bots 12497 | -8/Garrison | Triggered checkpoint 12498 | -8/Garrison | Triggered checkpoint 12743 | -8/Garrison | Discovered exit to Factory (range 8) 12794 | -8/Garrison | Triggered checkpoint 12827 | -8/Garrison | Garrison Relay disabled 12913 | -8/Garrison | Triggered checkpoint 12947 | -8/Garrison | Build established: Scavenger-Mutant 13030 | -8/Garrison | Garrison Relay disabled 13128 | -8/Garrison | Discovered exit to Factory (range 9) 13381 | -8/Garrison | Rescued a captive Derelict 13383 | -8/Garrison | Rescued a captive Derelict 13437 | -8/Garrison | Discovered exit to Factory (range 10) 13512 | -8/Garrison | Triggered checkpoint 13683 | -8/Garrison | Garrison Relay disabled 13684 | -8/Garrison | Triggered checkpoint 13837 | -8/Garrison | Entered Factory 13837 | -7/Factory | Accompanied by 3 allies 13837 | -7/Factory | Evolved 2 slots: Utility x1, Weapon x1 14126 | -7/Factory | Identified exit to Lower Caves 14380 | -7/Factory | Build established: Skirmisher 15079 | -7/Factory | Entered Lower Caves 15085 | -7/Lower Caves | Met a Warlord Commander 15086 | -7/Lower Caves | Learned location of Warlord (-5) 15087 | -7/Lower Caves | Warlord Commander delivered Encrypted Comm Array 15089 | -7/Lower Caves | Found Encrypted Comm Array 15208 | -7/Lower Caves | Identified exit to Lower Caves 15446 | -7/Lower Caves | Found Alien Artifact 15446 | -7/Lower Caves | Identified Core Expander 15446 | -7/Lower Caves | Installed Core Expander, added new Propulsion slot 15741 | -7/Lower Caves | Learned Factory terminal intel 16120 | -7/Lower Caves | Entered another Lower Caves area 16152 | -7/Lower Caves | Learned Factory emergency access door positions 16187 | -7/Lower Caves | Identified exit to Data Miner 16193 | -7/Lower Caves | Discovered new exit (range 12) 16721 | -7/Lower Caves | Encountered a Warlord checkpoint 16803 | -7/Lower Caves | Entered Data Miner 16803 | -7/Data Miner | Discovered new exit (range 6) 16808 | -7/Data Miner | Identified exit to Proximity Caves 16826 | -7/Data Miner | Met Data Miner 16846 | -7/Data Miner | Learned location of Section 7 (-2) 16846 | -7/Data Miner | Acquired the access code to Warlord's prototype stash 16864 | -7/Data Miner | Received God Mode back door access code from Data Miner 16904 | -7/Data Miner | Entered Proximity Caves 16906 | -6/Proximity Caves | Attracted the attention of an 0b10 checkpoint 17032 | -6/Proximity Caves | Learned location of Extension (-6) 17523 | -6/Proximity Caves | Discovered new exit (range 10) 17667 | -6/Proximity Caves | Identified exit to Factory 17669 | -6/Proximity Caves | Entered Factory 17669 | -6/Factory | Evolved 2 slots: Utility x2 17671 | -6/Factory | Loaded intel: 27 terminal locations 18029 | -6/Factory | Found Prototype Processor 18029 | -6/Factory | Identified Exp. Targeting Computer 18032 | -6/Factory | Incoming investigation squad redirected 18137 | -6/Factory | Identified exit to Lower Caves 18137 | -6/Factory | Identified exit to Extension 18144 | -6/Factory | Found Prototype Launcher 18144 | -6/Factory | Identified Scatter Rocket Array 18265 | -6/Factory | Repaired Arm. Huge Wheel 18451 | -6/Factory | Build established: Gunner 18697 | -6/Factory | Entered Extension 19029 | -6/Extension | Lost 3 parts (2n1w) 19107 | -6/Extension | Repaired Plasma Rifle 19172 | -6/Extension | Disrupted transfer network 19276 | -6/Extension | Rescued a captive Derelict 19277 | -6/Extension | Rescued a captive Derelict 19691 | -6/Extension | Build established: Commander-Gunner 19767 | -6/Extension | Spotted B-75 Beast 19788 | -6/Extension | Allies destroyed B-75 Beast 19797 | -6/Extension | Spotted B-75 Beast 19799 | -6/Extension | Allies destroyed B-75 Beast 19827 | -6/Extension | Lost 4 allies 19881 | -6/Extension | Energy Cycler disabled 19881 | -6/Extension | Rescued a captive Derelict 19907 | -6/Extension | Rescued A7 20015 | -6/Extension | Lost 5 allies 20323 | -6/Extension | Discovered new exit (range 10) 20324 | -6/Extension | Discovered new exit (range 6) 20330 | -6/Extension | Identified exit to Cetus 20341 | -6/Extension | Identified exit to Factory 20376 | -6/Extension | Entered Cetus 20376 | -6/Cetus | Accompanied by 5 allies (A7) 20381 | -6/Cetus | Acquired a Cetus Manufacturing Module code from A7 20404 | -6/Cetus | Build established: Scavenger-Gunner 20404 | -6/Cetus | Spotted Cetus Guard 20404 | -6/Cetus | Spotted Cetus Guard 20405 | -6/Cetus | Spotted Cetus Guard 20406 | -6/Cetus | Destroyed Cetus Guard 20411 | -6/Cetus | Allies destroyed Cetus Guard 20413 | -6/Cetus | Destroyed Cetus Guard 20473 | -6/Cetus | System corruption reached 10% 20580 | -6/Cetus | Started Cetus Manufacturing Module 20605 | -6/Cetus | Manufactured an Enhanced Grunt 20630 | -6/Cetus | Manufactured an Enhanced Grunt 20653 | -6/Cetus | Escorted A7 to Cetus Mainframe 20655 | -6/Cetus | Manufactured an Enhanced Grunt 20680 | -6/Cetus | Manufactured an Enhanced Grunt 20705 | -6/Cetus | Manufactured an Enhanced Grunt 20770 | -6/Cetus | Discovered new exit (range 16) 20820 | -6/Cetus | Spotted Cetus Guard 20822 | -6/Cetus | Spotted Cetus Guard 20822 | -6/Cetus | Spotted Cetus Guard 20823 | -6/Cetus | Spotted Cetus Guard 20826 | -6/Cetus | Allies destroyed Cetus Guard 20827 | -6/Cetus | Allies destroyed Cetus Guard 20828 | -6/Cetus | Allies destroyed Cetus Guard 20835 | -6/Cetus | Allies destroyed Cetus Guard 20844 | -6/Cetus | Discovered exit to Factory (range 16) 20852 | -6/Cetus | Met Revision 17 20955 | -6/Cetus | Identified exit to Archives 20966 | -6/Cetus | Entered Archives 20966 | -6/Archives | Accompanied by 8 allies (A7) 20971 | -6/Archives | Received a hacking code to weaken MAIN.C 21046 | -6/Archives | Found Prototype Device 21046 | -6/Archives | Identified Exp. Thermal Shield 21066 | -6/Archives | Lost 3 allies 21141 | -6/Archives | Build established: Scavenger-Tank 21227 | -6/Archives | Discovered exit to Factory (range 13) 21304 | -6/Archives | Discovered new exit (range 14) 21378 | -6/Archives | Discovered new exit (range 16) 21400 | -6/Archives | Identified exit to Hub_04(d) 21402 | -6/Archives | Entered Hub_04(d) 21402 | -6/Hub_04(d) | Accompanied by 4 allies 21434 | -6/Hub_04(d) | Garrison activated, responded to threat 21627 | -6/Hub_04(d) | Discovered exit to Factory (range 16) 21689 | -6/Hub_04(d) | Discovered exit to Factory (range 8) 21911 | -6/Hub_04(d) | Network Hub disabled 21997 | -6/Hub_04(d) | System corruption reached 30% 22020 | -6/Hub_04(d) | Entered Factory 22020 | -5/Factory | Accompanied by 2 allies 22020 | -5/Factory | Evolved 2 slots: Power x1, Propulsion x1 22339 | -5/Factory | Fabricated Huge Storage Unit? 22674 | -5/Factory | Spotted B-75 Beast 22675 | -5/Factory | Destroyed B-75 Beast 23001 | -5/Factory | Fabricated Adv. Point Defense System? 23103 | -5/Factory | Identified exit to Upper Caves 23673 | -5/Factory | Entered Upper Caves 24216 | -5/Upper Caves | Entered an active Warlord outpost 24238 | -5/Upper Caves | Learned Armory emergency access door positions 24238 | -5/Upper Caves | Learned Research security intel 24238 | -5/Upper Caves | Learned Extension security intel 24238 | -5/Upper Caves | Learned Armory terminal intel 24811 | -5/Upper Caves | Discovered new exit (range 12) 24826 | -5/Upper Caves | Identified exit to Upper Caves 24922 | -5/Upper Caves | Entered another Upper Caves area 25007 | -5/Upper Caves | Discovered new exit (range 7) 25015 | -5/Upper Caves | Identified exit to Factory 25547 | -5/Upper Caves | Build established: Scavenger-Gunner 25853 | -5/Upper Caves | Attracted the attention of an 0b10 checkpoint 26027 | -5/Upper Caves | Discovered new exit (range 9) 26040 | -5/Upper Caves | Identified exit to Warlord 26047 | -5/Upper Caves | Entered Warlord 26102 | -5/Warlord | System corruption cleaned by Quarantine Array 26332 | -5/Warlord | Met Warlord 26354 | -5/Warlord | Warlord's base attacked by MAIN.C 26428 | -5/Warlord | Opened Warlord's prototype stash 26430 | -5/Warlord | Build established: Scavenger-Skirmisher 26439 | -5/Warlord | Found Prototype Reactor 26444 | -5/Warlord | Found Prototype Device 26444 | -5/Warlord | Identified Exp. Cloaking Device 26461 | -5/Warlord | Found Prototype Hackware 26461 | -5/Warlord | Identified System Mapper 26659 | -5/Warlord | Lost 3 allies 26704 | -5/Warlord | Warlord forces counterattacked 26713 | -5/Warlord | P-80 Master assimilated allied DJ-XQP(g) 26739 | -5/Warlord | Build established: Scavenger-Tank 26766 | -5/Warlord | Spotted Executioner 26770 | -5/Warlord | Lost 3 allies 26791 | -5/Warlord | Found Prototype Processor 26791 | -5/Warlord | Identified Exp. Core Analyzer 26809 | -5/Warlord | Spotted Executioner 26812 | -5/Warlord | Spotted Executioner 26828 | -5/Warlord | Discovered new exit (range 14) 26846 | -5/Warlord | Identified exit to Proximity Caves 26847 | -5/Warlord | Entered Proximity Caves 26850 | -4/Proximity Caves | Lost 4 allies 27403 | -4/Proximity Caves | Learned Research stockpile data 27529 | -4/Proximity Caves | Snuck into a huge 0b10 base via the rear entrance 28026 | -4/Proximity Caves | Lost 7 allies 28104 | -4/Proximity Caves | Entered Factory 28104 | -4/Factory | Accompanied by 3 allies 28104 | -4/Factory | Evolved 2 slots: Utility x2 28382 | -4/Factory | Build established: Scavenger-Skirmisher 28474 | -4/Factory | Identified exit to Upper Caves 28663 | -4/Factory | Assembled infested ambush trap array 28714 | -4/Factory | Lost 3 parts (3u) 28747 | -4/Factory | Destroyed 18 combat bots 28825 | -4/Factory | Discovered new exit (range 15) 29104 | -4/Factory | First assault squad dispatched 29128 | -4/Factory | Incoming assault squad redirected 29200 | -4/Factory | Entered Upper Caves 29219 | -4/Upper Caves | Identified exit to Upper Caves 29353 | -4/Upper Caves | Encountered a Warlord checkpoint 29353 | -4/Upper Caves | Learned Research garrison access intel 29546 | -4/Upper Caves | Learned Research stockpile data 29780 | -4/Upper Caves | Build established: Scavenger-Tank 29907 | -4/Upper Caves | Attracted the attention of an 0b10 checkpoint 29909 | -4/Upper Caves | Entered another Upper Caves area 29929 | -4/Upper Caves | Discovered new exit (range 10) 30042 | -4/Upper Caves | Learned Factory emergency access door positions 30042 | -4/Upper Caves | Learned Armory stockpile data 30042 | -4/Upper Caves | Learned Factory security intel 30042 | -4/Upper Caves | Learned Research security intel 30352 | -4/Upper Caves | Discovered new exit (range 14) 30396 | -4/Upper Caves | Attracted the attention of an 0b10 checkpoint 30422 | -4/Upper Caves | Identified exit to Zhirov 30437 | -4/Upper Caves | System corruption reached 10% 30557 | -4/Upper Caves | Entered Zhirov 30557 | -4/Zhirov | Discovered new exit (range 3) 30559 | -4/Zhirov | Identified exit to Proximity Caves 30588 | -4/Zhirov | Met Zhirov 30621 | -4/Zhirov | Learned location of Quarantine (-3) 30621 | -4/Zhirov | Learned location of Testing (-2) 30621 | -4/Zhirov | Learned location of Command (-1) 30635 | -4/Zhirov | Zhirov requested help retrieving the SGEMP Prototype 30671 | -4/Zhirov | Found Alien Artifact 30671 | -4/Zhirov | Identified Integrated Dissipator 30671 | -4/Zhirov | Installed Integrated Dissipator, increased core heat dissipation (+20) 30762 | -4/Zhirov | Found Alien Artifact 30837 | -4/Zhirov | Entered Proximity Caves 31639 | -3/Proximity Caves | Discovered new exit (range 7) 31647 | -3/Proximity Caves | Identified exit to Research 31806 | -3/Proximity Caves | Entered Research 31806 | -3/Research | Evolved 2 slots: Utility x2 31809 | -3/Research | Loaded intel: 4 garrison access locations 32006 | -3/Research | Revision forces began assault on 0b10 32031 | -3/Research | Met up with Revision 17++ 32183 | -3/Research | Discovered new exit (range 18) 32189 | -3/Research | Build established: Scavenger-Skirmisher 32218 | -3/Research | Identified exit to Research 32506 | -3/Research | Research terminal network offline 32547 | -3/Research | Entered another Research area 32547 | -2/Research | Warlord forces began assault on 0b10 32547 | -2/Research | Evolved 2 slots: Power x1, Utility x1 32572 | -2/Research | Distinguished unit "Railsplitters" dispatched to help 32572 | -2/Research | Distinguished unit "Lobotomizers" dispatched to help 32620 | -2/Research | Discovered new exit (range 7) 32649 | -2/Research | Identified exit to Testing 32654 | -2/Research | Found Unknown Device 32654 | -2/Research | Identified Adv. Force Booster 32657 | -2/Research | Research machine network offline 32688 | -2/Research | Met up with Warlord 32709 | -2/Research | Borebot progress halted 33060 | -2/Research | Borebot progress halted 33129 | -2/Research | Borebot progress halted 33422 | -2/Research | Spotted Striker 33423 | -2/Research | Spotted Executioner 33423 | -2/Research | Spotted Executioner 33428 | -2/Research | Spotted Striker 33431 | -2/Research | Destroyed Executioner 33431 | -2/Research | Destroyed Executioner 33431 | -2/Research | Destroyed Striker 33446 | -2/Research | Destroyed Striker 33469 | -2/Research | Lost 9 allies 33480 | -2/Research | Destroyed 12 combat bots 33516 | -2/Research | Discovered new exit (range 5) 33520 | -2/Research | Identified exit to Access 34050 | -2/Research | Given Cave Seal Controls access code 34061 | -2/Research | Lost 4 allies 34191 | -2/Research | Entered Access 34191 | -1/Access | Evolved 2 slots: Utility x2 34211 | -1/Access | Identified exit to Command 34505 | -1/Access | Build established: Hacker-Skirmisher 34938 | -1/Access | System corruption reached 10% 34965 | -1/Access | Destroyed 8 combat bots 35249 | -1/Access | Entered Command 35536 | -1/Command | Build established: Hacker-Gunner 35648 | -1/Command | Identified Transdimensional Reconstructor 35648 | -1/Command | Failed to warp due to unstable space 36238 | -1/Command | Disengaged cave seal 36238 | -1/Command | Derelicts emerged from the dark tunnel 36238 | -1/Command | Welcomed Warlord to Command 36286 | -1/Command | Disengaged cave seal 36286 | -1/Command | Derelicts emerged from the dark tunnel 36548 | -1/Command | Spotted Combat Programmer 36548 | -1/Command | Spotted Combat Programmer 36549 | -1/Command | Spotted M Guard 36553 | -1/Command | Spotted M Guard 36568 | -1/Command | Warlord commented on Warlord statues 36586 | -1/Command | All MAIN.C guards destroyed 36622 | -1/Command | Lost 13 allies 36665 | -1/Command | Met MAIN.C 36665 | -1/Command | Hacked MAIN.C using A7's code 36665 | -1/Command | 0b10 Conduit disabled 36688 | -1/Command | MAIN.C activated Command garrisons 36734 | -1/Command | Lost 3 parts (1p2u) 36750 | *** | Establishing Free Derelict Territories! Last Messages --------------- 36745_ BE-OZQ(p) resets RQ-FQL(g), system corruption cleaned. 36746_ HV Slug penetrates MAIN.C. 36746_ MAIN.C suffers critical hit (Destroy). 36748_ S0-2RG(p) resets I2-CWC(L), system corruption cleaned. 36748_ MAIN.C reaction time slowed by virus. 36749_ S0>PG/ |X1Q/PHVIBWU6RTWU = DM 36749_ MAIN.C reaction time slowed by virus. 36749_ MAIN.C: "I hope you know you're still going to DIE HERE WITH ME!" [Achievement: void main()] Heavy Barrier opened. 36749_ MAIN.C destroyed. Warlord: Victory! Sure there's still lots to do, but without MAIN.C at the helm 0b10 doesn't stand a chance. We've got this... Map ----- +----------------------------------------------------+ | ?????????????????????????????????????????????????? | | ?????????????????????????????????????????????????? | | ?????????????????????????????????????????????????? | | ?????????????????????????????????????????????????? | | ?????????????????????????????????????????????????? | | ?????????????????????????????????????????????????? | | ?????????????????????????????????????????????????? | | ?????????????????????????????????????????????????? | | ?????????????????????????????????????????????????? | | ?????????????????????????????????????????????????? | | ?????????????????????????????????????????????????? | | ?????????????????????????#############???????????? | | ????????????????????"""? """" #???????????? | | ???????????????????? "" #???????????? | | ????????????????"?""" "" ############# | | ????????????????""""""""""" [%+ % | | ????????????????" """ %% %%[+ | | ???????????????#"" "" p M% M%%+ | | ???????????????#"" """ Mh gh M ############# | | ???????????????# $ L gm*h% #???????????? | | ???????????????# p=gg ! MW % #???????????? | | ???????????????# %%gmm*% ""#???????????? | | ???????????????# %g!! %"""""""#???????????? | | ???????????????# " """"""""#???????????? | | ???????????????# """"""""#???????????? | | ???????????????# @" " " " #???????????? | | ???????????????# " " " " #???????????? | | ???????????? " " " """" " #???????????? | | ??????????? """ " " """" #???????????? | | ??????????? " " " " ??????????????? | | ????????????#### """""""""" "???????????????? | | ???????????????# " """ " """"""??????????????? | | ???????????????# ? ???" " " " ??????????????? | | ???????????????#???????#########?????????????????? | | ?????????????????????????????????????????????????? | | ?????????????????????????????????????????????????? | | ?????????????????????????????????????????????????? | | ?????????????????????????????????????????????????? | | ?????????????????????????????????????????????????? | | ?????????????????????????????????????????????????? | | ?????????????????????????????????????????????????? | | ?????????????????????????????????????????????????? | | ?????????????????????????????????????????????????? | | ?????????????????????????????????????????????????? | | ?????????????????????????????????????????????????? | | ?????????????????????????????????????????????????? | | ?????????????????????????????????????????????????? | | ?????????????????????????????????????????????????? | | ?????????????????????????????????????????????????? | | ?????????????????????????????????????????????????? | +----------------------------------------------------+ Best States ------------- Heat Dissipation 103 Energy Generation 83 Energy Capacity 1350 Matter Stores 300 Matter Capacity 300 Sight Range 20 Robot Scan Range 16 Terrain Scan Range 24 Terrain Scan Density 210 Jamming Range 16 Cloak Strength 4 Power Amplification 30 Armor Coverage 900 Resistance: KI 30 Resistance: EM 25 Weapon Shielding 33 Point Defense Rating 480 Weapon Cycling 25 Evasion (%) 40 Targeting Accuracy 20 Core Analysis 8 Recoil Reduction 6 Matter Filtering 30 Offensive Hacking 28 Defensive Hacking 14 Item Schematics ----------------- Huge Storage Unit | -8/Materials | Scanalyzed Hacking Suite | -8/Materials | Scanalyzed Med. Storage Unit | -8/Materials | Scanalyzed Combat Drone Bay | -7/Data Miner | Free Lgt. Regenerative Plating | -7/Data Miner | Free Multireflex Exoskeleton | -7/Data Miner | Free Gravity Neutralizer | -7/Data Miner | Free Imp. Lightning Gun | -7/Data Miner | Free Field Propulsion Drive | -7/Data Miner | Free Adv. Salvage Targeting Computer | -7/Data Miner | Free Lrn. Proton Cannon | -7/Data Miner | Free Imp. Gravmag System | -7/Data Miner | Free Imp. Transmission Jammer | -7/Data Miner | Free Disruptor Cannon | -7/Data Miner | Free Centrium Wheel | -7/Data Miner | Free Hvy. Disruptor Cannon | -7/Data Miner | Free Assault Drone Bay | -4/Zhirov | Free Exp. Heat Sink | -4/Zhirov | Free Exp. Optical Array | -4/Zhirov | Free Imp. Arc Thrower | -4/Zhirov | Free Robot Schematics ------------------ G-47 Trooper | -7/Data Miner | Free R-10 Processor | -7/Data Miner | Free L-41 Fighter | -7/Data Miner | Free A-15 Conveyor | -7/Data Miner | Free M-22 Extractor | -7/Data Miner | Free X-62 Marksman | -7/Data Miner | Free M-14 Sweeper | -7/Data Miner | Free Fabricated ------------ Huge Storage Unit | x1 | -5/Factory Adv. Point Defense System | x2 | -5/Factory | Preloaded Repaired ---------- Lgt. Treads | 16% | -8/Materials Grenade Launcher | 50% | -8/Materials Arm. Wheel | 28% | -8/Materials Arm. Huge Wheel | 32% | -6/Factory Plasma Rifle | 8% | -6/Extension Alien Tech Used ----------------- Core Expander Integrated Dissipator Transdimensional Reconstructor Achievements -------------- Corridor Of Doom No Explosion For You Poison In The Code void main() Challenges ------------ None Game ------ Seed TiamatBlastDiverter Manual? 0 Play Time 06:40:14 Cumulative 163.4 hours Start 2025.09.23 @ 21:48:43 End 2025.09.26 @ 20:30:25 Sessions 8 Manual Loads 0 Difficulty Rogue Special Mode None Game No. 53 Rogue 47 Adventurer 0 Explorer 6 Win Type 7 Total 9 Types 5/0/2/1/0/0/0/1/0/0 Lore% 73 Gallery% 63 Achievement% 63 Wizard Run 0 Options --------- Layout 1 ASCII 0 Keyboard 0 Movement Mouse Keybinds 0 Fullscreen 2 Font 24/Smallcaps Map View 50x35 Zoom Use 0% Tactical HUD 1 Map Filters NONE Filters NONE Steam 1 RUN: 78ed2826-51c5-4ee5-96ee-fe5d11f7419c